Workbook

Sheet Navigation
K7: M/S Shiv Shankar KiranaandFertil
L8: Stock and Sales FOR THE PERIOD 01-Apr-2020 TO 31-Mar-2021

Sheet Dealer Report
A1: Shivshanker Kirana& Fert.
A2: Gandhi Gunj, Bhainsa.
A3: Seed L.No. ADB/16/JDA/SD/2016/5963
A4: Pest.L.No. 88/1978
A5: Fert W.L.No.ADB/16/ADA/FW/2013/2994
A6: Fert. R.L.No.ADB/16/ADA/FR/2013/8618
A7: GSTIN/UIN:36AABHB0739C1ZX
A8: Telangana - 504103, India
A9: Bayer
A10: Stock Summary
A11: 1-Apr-20 to 31-Mar-21
B12: Bayer
B13: Shivshanker Kirana& Fert.BNS 20-21
A14: Particulars | B14: 1-Apr-20 to 31-Mar-21
B15: Opening Balance | C15: Inwards | D15: Outwards | E15: Closing Balance
A16: NAME | B16: Quantity | C16: Quantity | D16: Quantity | E16: Quantity
A17: Admir 2gm | C17: 32 | D17: 20 | E17: 12
A18: Admire 150gm (209) | B18: 17 | C18: 120 | D18: 131 | E18: 6
A19: Admire Bayer 75gm(211) | B19: 41 | C19: 120 | D19: 144 | E19: 17
A20: Agenda Bayer 100ml
A21: Alanto 250ml | C21: 5 | E21: 5
A22: Aliette 250 Gm (224) | B22: 17 | C22: 40 | D22: 57
A23: Aliette Bayer 500gm | C23: 10 | D23: 10
A24: Antracol 1kg | C24: 470 | D24: 458 | E24: 12
A25: Antracol 250gm*40 | C25: 120 | D25: 116 | E25: 4
A26: Antracol 500gm (215) | B26: 10 | C26: 460 | D26: 460 | E26: 10
A27: Confidor 50ml Bayer | C27: 40 | D27: 40
A28: Confidor Bayer 100ml | B28: 10 | C28: 3699 | D28: 3735 | E28: -26
A29: Confidor Bayer 1lt(126) | C29: 150 | D29: 150
A30: Confidor Bayer 250ml (132) | C30: 3475 | D30: 3480 | E30: -5
A31: Confidor Bayer 500ml (128) | B31: 6 | C31: 1383 | D31: 1385 | E31: 4
A32: Council 90gm Bayer | C32: 5 | D32: 5
A33: Decies 250ml (222) | C33: 396 | D33: 36 | E33: 360
A34: Decis 100ml (230) | B34: 97 | C34: 50 | D34: 63 | E34: 84
A35: Evergol Xtend 100 Ml | C35: 157 | D35: 157
A36: Evergol Xtend 40ml*100 | C36: 500 | D36: 375 | E36: 125
A37: Fame 100ml (159) | B37: 9 | C37: 3960 | D37: 3485 | E37: 484
A38: Fame 10ml (168) | B38: 8 | C38: 1000 | D38: 1007 | E38: 1
A39: Fame 250ml | C39: 16 | D39: 12 | E39: 4
A40: Fame 50ml (164) | C40: 7177 | D40: 6364 | E40: 813
A41: Folicure Bayer 250ml | C41: 82 | D41: 82
A42: Foost 250gm | C42: 896 | D42: 990 | E42: -94
A43: Foost 500 Gm(185) | B43: 212 | C43: 4812 | D43: 4458 | E43: 566
A44: Gaucho 100ml | B44: 66 | C44: 370 | D44: 381 | E44: 55
A45: Gaucho 50 Ml | C45: 120 | D45: 108 | E45: 12
A46: Jump 2gm | C46: 1630 | D46: 1613 | E46: 17
A47: Jump 40gm | C47: 240 | D47: 240
A48: Larvin 1kg (140) | B48: 6 | C48: 21 | D48: 16 | E48: 11
A49: Larvin 250gm | C49: 40 | D49: 39 | E49: 1
A50: Larvin 500gm (142) | B50: 3 | C50: 42 | D50: 50 | E50: -5
A51: Laudies 115ml (194) | B51: 28 | C51: 3455 | D51: 3283 | E51: 200
A52: Laudies 230ml (190) | B52: 3 | C52: 585 | D52: 543 | E52: 45
A53: Laudies 57ml(197) | B53: 5 | C53: 1040 | D53: 1027 | E53: 18
A54: Lesenta 100gm (156) | C54: 400 | D54: 370 | E54: 30
A55: Lesenta 250gm (179) | B55: 10 | C55: 60 | D55: 50 | E55: 20
A56: Lesenta 40gm | B56: 7 | C56: 100 | D56: 32 | E56: 75
A57: Movento Bayer 1lt | B57: 12 | C57: 10 | D57: 17 | E57: 5
A58: Movento Bayer 250ml | C58: 200 | D58: 195 | E58: 5
A59: Nativo 100gm*50 (200) | B59: 8 | C59: 4007 | D59: 3878 | E59: 137
A60: Nativo 10 Gm | C60: 30 | D60: 2 | E60: 28
A61: Nativo 250gm | C61: 648 | D61: 621 | E61: 27
A62: Nativo 500gm Bayer | B62: 7 | C62: 40 | D62: 40 | E62: 7
A63: NATIVO 50GM | B63: 26 | C63: 100 | D63: 66 | E63: 60
A64: Oberan Bayer 1lt | C64: 90 | D64: 90
A65: Oberon Bayer 200ml*40 | C65: 90 | D65: 90
A66: Planofix 100ml*50 | B66: 22 | C66: 750 | D66: 730 | E66: 42
A67: Regent Bayer 1lt (170) | B67: 4 | C67: 4641 | D67: 4632 | E67: 13
A68: Regent Bayer 250ml | B68: 21 | C68: 1940 | D68: 1960 | E68: 1
A69: Regent Bayer 500ml (173) | C69: 4841 | D69: 4845 | E69: -4
A70: Regent Gold 100ml (220) | B70: 17 | C70: 51 | D70: 67 | E70: 1
A71: Regent Gold 250ml (218) | B71: 20 | C71: 81 | D71: 93 | E71: 8
A72: Regent Granuals 4kg | C72: 203 | D72: 163 | E72: 40
A73: Section 1kg (183) | C73: 40 | D73: 40
A74: Section 600gm (203) | B74: 32 | D74: 32
A75: Simbola 100gm (207) | B75: 7 | C75: 70 | D75: 22 | E75: 55
A76: Sivanto 250ml | B76: 30 | D76: 30
A77: Sivento 1 Lt | B77: 7 | D77: 1 | E77: 6
A78: Sivento 500ml | B78: 15 | D78: 2 | E78: 13
A79: Soloman 1lt | C79: 83 | D79: 84 | E79: -1
A80: Soloman 250 Gm (233) | B80: 41 | C80: 80 | D80: 74 | E80: 47
A81: Soloman 500ml*20 (235) | C81: 80 | D81: 81 | E81: -1
A82: SPINTER 75ML | B82: 21 | E82: 21
A83: Sunrice Bayer 50gm | B83: 50 | D83: 50
A84: Super Confider Bayar 500ml(148) | B84: 24 | C84: 363 | D84: 373 | E84: 14
A85: Super Confidor 100ml (236) | C85: 1200 | D85: 1198 | E85: 2
A86: Super Confidor 250ml (151) | B86: 14 | C86: 1207 | D86: 1205 | E86: 16
A87: Super Confidor 50ml (288) | C87: 245 | D87: 241 | E87: 4
A88: Total | B88: =SUM(B17:B87) -> 933 | C88: 58368 | D88: 55894 | E88: 3407

Sheet Dealer Report working
A1: Particulars | B1: Opening Qty | C1: Purchase Qty | D1: Sales Qty | E1: CLSG | F1: Master Name | K1: Values
A2: Admir 2gm | C2: 32 | D2: 20 | E2: 12 | F2: ADMIRE WG70 125X(8X2GR) BAG IN | J2: Row Labels | K2: Sum of Opening Qty | L2: Sum of Purchase Qty | M2: Sum of Sales Qty | N2: Sum of CLSG
A3: Admire 150gm (209) | B3: 17 | C3: 120 | D3: 131 | E3: 6 | F3: ADMIRE (T) WG70 30X150GR BOT IN | J3: ADMIRE (T) WG70 30X150GR BOT IN | K3: 17 | L3: 120 | M3: 131 | N3: 6
A4: Admire Bayer 75gm(211) | B4: 41 | C4: 120 | D4: 144 | E4: 17 | F4: ADMIRE (T) WG70 60X75GR BOT IN | J4: ADMIRE (T) WG70 60X75GR BOT IN | K4: 41 | L4: 120 | M4: 144 | N4: 17
A5: Agenda Bayer 100ml | F5: AGENDA EC25 50X100ML BOT IN | J5: ADMIRE WG70 125X(8X2GR) BAG IN | L5: 32 | M5: 20 | N5: 12
A6: Alanto 250ml | C6: 5 | E6: 5 | F6: ALANTO (T) SC240 40X250ML BOT IN | J6: AGENDA EC25 50X100ML BOT IN
A7: Aliette 250 Gm (224) | B7: 17 | C7: 40 | D7: 57 | F7: ALANTO (T) SC240 40X250ML BOT IN | J7: ALANTO (T) SC240 40X250ML BOT IN | K7: 17 | L7: 45 | M7: 57 | N7: 5
A8: Aliette Bayer 500gm | C8: 10 | D8: 10 | F8: ALIETTE WP80 20X500GR BAG IN | J8: ALIETTE WP80 20X500GR BAG IN | L8: 10 | M8: 10
A9: Antracol 1kg | C9: 470 | D9: 458 | E9: 12 | F9: ANTRACOL (T) WP70 10X1KG BAG IN | J9: ANTRACOL (T) WP70 10X1KG BAG IN | L9: 470 | M9: 458 | N9: 12
A10: Antracol 250gm*40 | C10: 120 | D10: 116 | E10: 4 | F10: ANTRACOL (T) WP70 40X250GR BAG IN | J10: ANTRACOL (T) WP70 20X500GR BAG IN | K10: 10 | L10: 460 | M10: 460 | N10: 10
A11: Antracol 500gm (215) | B11: 10 | C11: 460 | D11: 460 | E11: 10 | F11: ANTRACOL (T) WP70 20X500GR BAG IN | J11: ANTRACOL (T) WP70 40X250GR BAG IN | L11: 120 | M11: 116 | N11: 4
A12: Confidor 50ml Bayer | C12: 40 | D12: 40 | F12: CONFIDOR (T) SL200 100X50ML BOT IN | J12: CONFIDOR (T) SL200 100X50ML BOT IN | L12: 40 | M12: 40
A13: Confidor Bayer 100ml | B13: 10 | C13: 3699 | D13: 3735 | E13: -26 | F13: CONFIDOR (T) SL200 50X100ML BOT IN | J13: CONFIDOR (T) SL200 10X1L BOT IN | L13: 150 | M13: 150
A14: Confidor Bayer 1lt(126) | C14: 150 | D14: 150 | F14: CONFIDOR (T) SL200 10X1L BOT IN | J14: CONFIDOR (T) SL200 20X250ML BOT IN | L14: 3475 | M14: 3480 | N14: -5
A15: Confidor Bayer 250ml (132) | C15: 3475 | D15: 3480 | E15: -5 | F15: CONFIDOR (T) SL200 20X250ML BOT IN | J15: CONFIDOR (T) SL200 20X500ML BOT IN | K15: 6 | L15: 1383 | M15: 1385 | N15: 4
A16: Confidor Bayer 500ml (128) | B16: 6 | C16: 1383 | D16: 1385 | E16: 4 | F16: CONFIDOR (T) SL200 20X500ML BOT IN | J16: CONFIDOR (T) SL200 50X100ML BOT IN | K16: 10 | L16: 3699 | M16: 3735 | N16: -26
A17: Council 90gm Bayer | C17: 5 | D17: 5 | F17: COUNCIL ACTIV WG30 12X(5X90GR) BOX IN | J17: CONFIDOR SUPER (T) SC350 20X250ML BOT IN | K17: 14 | L17: 1207 | M17: 1205 | N17: 16
A18: Decies 250ml (222) | C18: 396 | D18: 36 | E18: 360 | F18: DECIS EC 28 40X250ML BOT IN | J18: CONFIDOR SUPER (T) SC350 20X500ML BOT IN | K18: 24 | L18: 363 | M18: 373 | N18: 14
A19: Decis 100ml (230) | B19: 97 | C19: 50 | D19: 63 | E19: 84 | F19: DECIS EC 28 50X100ML BOT IN | J19: CONFIDOR SUPER (T) SC350 50X100ML BOT IN | L19: 1200 | M19: 1198 | N19: 2
A20: Evergol Xtend 100 Ml | C20: 157 | D20: 157 | F20: EVERGOL XTEND FS308 50X100ML BOT IN | J20: CONFIDOR SUPER (T) SC350 50X50ML BOT IN | L20: 245 | M20: 241 | N20: 4
A21: Evergol Xtend 40ml*100 | C21: 500 | D21: 375 | E21: 125 | F21: EVERGOL XTEND FS308 100X40ML BOT IN | J21: COUNCIL ACTIV WG30 12X(5X90GR) BOX IN | L21: 5 | M21: 5
A22: Fame 100ml (159) | B22: 9 | C22: 3960 | D22: 3485 | E22: 484 | F22: FAME (T) SC480 20X100ML BOT IN | J22: DECIS EC 28 40X250ML BOT IN | L22: 396 | M22: 36 | N22: 360
A23: Fame 10ml (168) | B23: 8 | C23: 1000 | D23: 1007 | E23: 1 | F23: FAME (T) SC480 10X(20X10ML) BOT IN | J23: DECIS EC 28 50X100ML BOT IN | K23: 97 | L23: 50 | M23: 63 | N23: 84
A24: Fame 250ml | C24: 16 | D24: 12 | E24: 4 | F24: FAME (T) SC480 8X250ML BOT IN | J24: EVERGOL XTEND FS308 100X40ML BOT IN | L24: 500 | M24: 375 | N24: 125
A25: Fame 50ml (164) | C25: 7177 | D25: 6364 | E25: 813 | F25: FAME (T) SC480 40X50ML BOT IN | J25: EVERGOL XTEND FS308 50X100ML BOT IN | L25: 157 | M25: 157
A26: Folicure Bayer 250ml | C26: 82 | D26: 82 | F26: FOLICUR (T) EC250 40X250ML BOT IN | J26: FAME (T) SC480 10X(20X10ML) BOT IN | K26: 8 | L26: 1000 | M26: 1007 | N26: 1
A27: Foost 250gm | C27: 896 | D27: 990 | E27: -94 | F27: FOOST WP50 20X250G BAG IN | J27: FAME (T) SC480 20X100ML BOT IN | K27: 9 | L27: 3960 | M27: 3485 | N27: 484
A28: Foost 500 Gm(185) | B28: 212 | C28: 4812 | D28: 4458 | E28: 566 | F28: FOOST WP50 24X500G BAG IN | J28: FAME (T) SC480 40X50ML BOT IN | L28: 7177 | M28: 6364 | N28: 813
A29: Gaucho 100ml | B29: 66 | C29: 370 | D29: 381 | E29: 55 | F29: GAUCHO FS600 50X100ML BOT IN | J29: FAME (T) SC480 8X250ML BOT IN | L29: 16 | M29: 12 | N29: 4
A30: Gaucho 50 Ml | C30: 120 | D30: 108 | E30: 12 | F30: GAUCHO FS600 100X50ML BOT IN | J30: FOLICUR (T) EC250 40X250ML BOT IN | L30: 82 | M30: 82
A31: Jump 2gm | C31: 1630 | D31: 1613 | E31: 17 | F31: JUMP WG80 160X(10X2GR) BAG IN | J31: FOOST WP50 20X250G BAG IN | L31: 896 | M31: 990 | N31: -94
A32: Jump 40gm | C32: 240 | D32: 240 | F32: JUMP WG80 80X40GR BAG IN | J32: FOOST WP50 24X500G BAG IN | K32: 212 | L32: 4812 | M32: 4458 | N32: 566
A33: Larvin 1kg (140) | B33: 6 | C33: 21 | D33: 16 | E33: 11 | F33: LARVIN (T) WP75 10X1KG BAG IN | J33: GAUCHO FS600 100X50ML BOT IN | L33: 120 | M33: 108 | N33: 12
A34: Larvin 250gm | C34: 40 | D34: 39 | E34: 1 | F34: LARVIN (T) WP75 20X250GR BAG IN | J34: GAUCHO FS600 50X100ML BOT IN | K34: 66 | L34: 370 | M34: 381 | N34: 55
A35: Larvin 500gm (142) | B35: 3 | C35: 42 | D35: 50 | E35: -5 | F35: LARVIN (T) WP75 20X500GR BAG IN | J35: JUMP WG80 160X(10X2GR) BAG IN | L35: 1630 | M35: 1613 | N35: 17
A36: Laudies 115ml (194) | B36: 28 | C36: 3455 | D36: 3283 | E36: 200 | F36: LAUDIS SC630 8X115ML BOT IN | J36: JUMP WG80 80X40GR BAG IN | L36: 240 | M36: 240
A37: Laudies 230ml (190) | B37: 3 | C37: 585 | D37: 543 | E37: 45 | F37: LAUDIS SC630 3X230ML BOT IN | J37: LARVIN (T) WP75 10X1KG BAG IN | K37: 6 | L37: 21 | M37: 16 | N37: 11
A38: Laudies 57ml(197) | B38: 5 | C38: 1040 | D38: 1027 | E38: 18 | F38: LAUDIS SC630 10X57.5ML BOT IN | J38: LARVIN (T) WP75 20X250GR BAG IN | L38: 40 | M38: 39 | N38: 1
A39: Lesenta 100gm (156) | C39: 400 | D39: 370 | E39: 30 | F39: LESENTA WG80 50X100GR BAG IN | J39: LARVIN (T) WP75 20X500GR BAG IN | K39: 3 | L39: 42 | M39: 50 | N39: -5
A40: Lesenta 250gm (179) | B40: 10 | C40: 60 | D40: 50 | E40: 20 | F40: LESENTA WG80 20X250GR BAG IN | J40: LAUDIS SC630 10X57.5ML BOT IN | K40: 5 | L40: 1040 | M40: 1027 | N40: 18
A41: Lesenta 40gm | B41: 7 | C41: 100 | D41: 32 | E41: 75 | F41: LESENTA WG80 100X40GR BAG IN | J41: LAUDIS SC630 3X230ML BOT IN | K41: 3 | L41: 585 | M41: 543 | N41: 45
A42: Movento Bayer 1lt | B42: 12 | C42: 10 | D42: 17 | E42: 5 | F42: MOVENTO OD150 10X1L BOT IN | J42: LAUDIS SC630 8X115ML BOT IN | K42: 28 | L42: 3455 | M42: 3283 | N42: 200
A43: Movento Bayer 250ml | C43: 200 | D43: 195 | E43: 5 | F43: MOVENTO OD150 40X250ML BOT IN | J43: LESENTA WG80 100X40GR BAG IN | K43: 7 | L43: 100 | M43: 32 | N43: 75
A44: Nativo 100gm*50 (200) | B44: 8 | C44: 4007 | D44: 3878 | E44: 137 | F44: NATIVO WG75 50X100GR BAG IN | J44: LESENTA WG80 20X250GR BAG IN | K44: 10 | L44: 60 | M44: 50 | N44: 20
A45: Nativo 10 Gm | C45: 30 | D45: 2 | E45: 28 | F45: NATIVO WG75 20X(10X10GR) BAG IN | J45: LESENTA WG80 50X100GR BAG IN | L45: 400 | M45: 370 | N45: 30
A46: Nativo 250gm | C46: 648 | D46: 621 | E46: 27 | F46: NATIVO WG75 40X250GR BAG IN | J46: MOVENTO OD150 10X1L BOT IN | K46: 12 | L46: 10 | M46: 17 | N46: 5
A47: Nativo 500gm Bayer | B47: 7 | C47: 40 | D47: 40 | E47: 7 | F47: NATIVO WG75 20X500GR BAG IN | J47: MOVENTO OD150 40X250ML BOT IN | L47: 200 | M47: 195 | N47: 5
A48: NATIVO 50GM | B48: 26 | C48: 100 | D48: 66 | E48: 60 | F48: NATIVO WG75 100X50GR BAG IN | J48: NATIVO WG75 100X50GR BAG IN | K48: 26 | L48: 100 | M48: 66 | N48: 60
A49: Oberan Bayer 1lt | C49: 90 | D49: 90 | F49: OBERON (T) SC240 10X1L BOT IN | J49: NATIVO WG75 20X(10X10GR) BAG IN | L49: 30 | M49: 2 | N49: 28
A50: Oberon Bayer 200ml*40 | C50: 90 | D50: 90 | F50: OBERON (T) SC240 40X200ML BOT IN | J50: NATIVO WG75 20X500GR BAG IN | K50: 7 | L50: 40 | M50: 40 | N50: 7
A51: Planofix 100ml*50 | B51: 22 | C51: 750 | D51: 730 | E51: 42 | F51: PLANOFIX SL4 5 50X100ML BOT IN | J51: NATIVO WG75 40X250GR BAG IN | L51: 648 | M51: 621 | N51: 27
A52: Regent Bayer 1lt (170) | B52: 4 | C52: 4641 | D52: 4632 | E52: 13 | F52: REGENT (T) SC50 10X1L BOT IN | J52: NATIVO WG75 50X100GR BAG IN | K52: 8 | L52: 4007 | M52: 3878 | N52: 137
A53: Regent Bayer 250ml | B53: 21 | C53: 1940 | D53: 1960 | E53: 1 | F53: REGENT (T) SC50 20X250ML BOT IN | J53: OBERON (T) SC240 10X1L BOT IN | L53: 90 | M53: 90
A54: Regent Bayer 500ml (173) | C54: 4841 | D54: 4845 | E54: -4 | F54: REGENT (T) SC50 20X500ML BOT IN | J54: OBERON (T) SC240 40X200ML BOT IN | L54: 90 | M54: 90
A55: Regent Gold 100ml (220) | B55: 17 | C55: 51 | D55: 67 | E55: 1 | F55: REGENT GOLD SC200 50X100ML BOT IN | J55: PLANOFIX SL4 5 50X100ML BOT IN | K55: 22 | L55: 750 | M55: 730 | N55: 42
A56: Regent Gold 250ml (218) | B56: 20 | C56: 81 | D56: 93 | E56: 8 | F56: REGENT GOLD SC200 40X250ML BOT IN | J56: REGENT (T) SC50 10X1L BOT IN | K56: 4 | L56: 4641 | M56: 4632 | N56: 13
A57: Regent Granuals 4kg | C57: 203 | D57: 163 | E57: 40 | F57: REGENT ULTRA GR0 6 5X4KG BAG IN | J57: REGENT (T) SC50 20X250ML BOT IN | K57: 21 | L57: 1940 | M57: 1960 | N57: 1
A58: Section 1kg (183) | C58: 40 | D58: 40 | F58: SECTIN WG60 10X1KG BAG IN | J58: REGENT (T) SC50 20X500ML BOT IN | L58: 4841 | M58: 4845 | N58: -4
A59: Section 600gm (203) | B59: 32 | D59: 32 | F59: SECTIN WG60 20X600GR BAG IN | J59: REGENT GOLD SC200 40X250ML BOT IN | K59: 20 | L59: 81 | M59: 93 | N59: 8
A60: Simbola 100gm (207) | B60: 7 | C60: 70 | D60: 22 | E60: 55 | F60: SIMBOLA (T) SG20 50X100G BOT IN | J60: REGENT GOLD SC200 50X100ML BOT IN | K60: 17 | L60: 51 | M60: 67 | N60: 1
A61: Sivanto 250ml | B61: 30 | D61: 30 | F61: SIVANTO PRIME SL200 40X250ML BOT IN | J61: REGENT ULTRA GR0 6 5X4KG BAG IN | L61: 203 | M61: 163 | N61: 40
A62: Sivento 1 Lt | B62: 7 | D62: 1 | E62: 6 | F62: SIVANTO PRIME SL200 10X1L BOT IN | J62: SECTIN WG60 10X1KG BAG IN | L62: 40 | M62: 40
A63: Sivento 500ml | B63: 15 | D63: 2 | E63: 13 | F63: SIVANTO PRIME SL200 20X500ML BOT IN | J63: SECTIN WG60 20X600GR BAG IN | K63: 32 | M63: 32
A64: Soloman 1lt | C64: 83 | D64: 84 | E64: -1 | F64: SOLOMON OD300 10X1L BOT IN | J64: SIMBOLA (T) SG20 50X100G BOT IN | K64: 7 | L64: 70 | M64: 22 | N64: 55
A65: Soloman 250 Gm (233) | B65: 41 | C65: 80 | D65: 74 | E65: 47 | F65: SOLOMON OD300 40X250ML BOT IN | J65: SIVANTO PRIME SL200 10X1L BOT IN | K65: 7 | M65: 1 | N65: 6
A66: Soloman 500ml*20 (235) | C66: 80 | D66: 81 | E66: -1 | F66: SOLOMON OD300 20X500ML BOT IN | J66: SIVANTO PRIME SL200 20X500ML BOT IN | K66: 15 | M66: 2 | N66: 13
A67: SPINTER 75ML | B67: 21 | E67: 21 | F67: SPINTOR SC495 20X75ML BOT IN | J67: SIVANTO PRIME SL200 40X250ML BOT IN | K67: 30 | M67: 30
A68: Sunrice Bayer 50gm | B68: 50 | D68: 50 | F68: SUNRICE WG15 100X50GR BOT IN | J68: SOLOMON OD300 10X1L BOT IN | L68: 83 | M68: 84 | N68: -1
A69: Super Confider Bayar 500ml(148) | B69: 24 | C69: 363 | D69: 373 | E69: 14 | F69: CONFIDOR SUPER (T) SC350 20X500ML BOT IN | J69: SOLOMON OD300 20X500ML BOT IN | L69: 80 | M69: 81 | N69: -1
A70: Super Confidor 100ml (236) | C70: 1200 | D70: 1198 | E70: 2 | F70: CONFIDOR SUPER (T) SC350 50X100ML BOT IN | J70: SOLOMON OD300 40X250ML BOT IN | K70: 41 | L70: 80 | M70: 74 | N70: 47
A71: Super Confidor 250ml (151) | B71: 14 | C71: 1207 | D71: 1205 | E71: 16 | F71: CONFIDOR SUPER (T) SC350 20X250ML BOT IN | J71: SPINTOR SC495 20X75ML BOT IN | K71: 21 | N71: 21
A72: Super Confidor 50ml (288) | C72: 245 | D72: 241 | E72: 4 | F72: CONFIDOR SUPER (T) SC350 50X50ML BOT IN | J72: SUNRICE WG15 100X50GR BOT IN | K72: 50 | M72: 50
J73: Grand Total | K73: 933 | L73: 58368 | M73: 55894 | N73: 3407

Sheet Master
A1: Item Details | B1: Master Name
A2: Admir 2gm | B2: ADMIRE WG70 125X(8X2GR) BAG IN
A3: Admire 150gm (209) | B3: ADMIRE (T) WG70 30X150GR BOT IN
A4: Admire Bayer 75gm(211) | B4: ADMIRE (T) WG70 60X75GR BOT IN
A5: Agenda Bayer 100ml | B5: AGENDA EC25 50X100ML BOT IN
A6: Alanto 250ml | B6: ALANTO (T) SC240 40X250ML BOT IN
A7: Aliette 250 Gm (224) | B7: ALANTO (T) SC240 40X250ML BOT IN
A8: Aliette Bayer 500gm | B8: ALIETTE WP80 20X500GR BAG IN
A9: Antracol 1kg | B9: ANTRACOL (T) WP70 10X1KG BAG IN
A10: Antracol 250gm*40 | B10: ANTRACOL (T) WP70 40X250GR BAG IN
A11: Antracol 500gm (215) | B11: ANTRACOL (T) WP70 20X500GR BAG IN
A12: Confidor 50ml Bayer | B12: CONFIDOR (T) SL200 100X50ML BOT IN
A13: Confidor Bayer 100ml | B13: CONFIDOR (T) SL200 50X100ML BOT IN
A14: Confidor Bayer 1lt(126) | B14: CONFIDOR (T) SL200 10X1L BOT IN
A15: Confidor Bayer 250ml (132) | B15: CONFIDOR (T) SL200 20X250ML BOT IN
A16: Confidor Bayer 500ml (128) | B16: CONFIDOR (T) SL200 20X500ML BOT IN
A17: Council 90gm Bayer | B17: COUNCIL ACTIV WG30 12X(5X90GR) BOX IN
A18: Decies 250ml (222) | B18: DECIS EC 28 40X250ML BOT IN
A19: Decis 100ml (230) | B19: DECIS EC 28 50X100ML BOT IN
A20: Evergol Xtend 100 Ml | B20: EVERGOL XTEND FS308 50X100ML BOT IN
A21: Evergol Xtend 40ml*100 | B21: EVERGOL XTEND FS308 100X40ML BOT IN
A22: Fame 100ml (159) | B22: FAME (T) SC480 20X100ML BOT IN
A23: Fame 10ml (168) | B23: FAME (T) SC480 10X(20X10ML) BOT IN
A24: Fame 250ml | B24: FAME (T) SC480 8X250ML BOT IN
A25: Fame 50ml (164) | B25: FAME (T) SC480 40X50ML BOT IN
A26: Folicure Bayer 250ml | B26: FOLICUR (T) EC250 40X250ML BOT IN
A27: Foost 250gm | B27: FOOST WP50 20X250G BAG IN
A28: Foost 500 Gm(185) | B28: FOOST WP50 24X500G BAG IN
A29: Gaucho 100ml | B29: GAUCHO FS600 50X100ML BOT IN
A30: Gaucho 50 Ml | B30: GAUCHO FS600 100X50ML BOT IN
A31: Jump 2gm | B31: JUMP WG80 160X(10X2GR) BAG IN
A32: Jump 40gm | B32: JUMP WG80 80X40GR BAG IN
A33: Larvin 1kg (140) | B33: LARVIN (T) WP75 10X1KG BAG IN
A34: Larvin 250gm | B34: LARVIN (T) WP75 20X250GR BAG IN
A35: Larvin 500gm (142) | B35: LARVIN (T) WP75 20X500GR BAG IN
A36: Laudies 115ml (194) | B36: LAUDIS SC630 8X115ML BOT IN
A37: Laudies 230ml (190) | B37: LAUDIS SC630 3X230ML BOT IN
A38: Laudies 57ml(197) | B38: LAUDIS SC630 10X57.5ML BOT IN
A39: Lesenta 100gm (156) | B39: LESENTA WG80 50X100GR BAG IN
A40: Lesenta 250gm (179) | B40: LESENTA WG80 20X250GR BAG IN
A41: Lesenta 40gm | B41: LESENTA WG80 100X40GR BAG IN
A42: Movento Bayer 1lt | B42: MOVENTO OD150 10X1L BOT IN
A43: Movento Bayer 250ml | B43: MOVENTO OD150 40X250ML BOT IN
A44: Nativo 100gm*50 (200) | B44: NATIVO WG75 50X100GR BAG IN
A45: Nativo 10 Gm | B45: NATIVO WG75 20X(10X10GR) BAG IN
A46: Nativo 250gm | B46: NATIVO WG75 40X250GR BAG IN
A47: Nativo 500gm Bayer | B47: NATIVO WG75 20X500GR BAG IN
A48: NATIVO 50GM | B48: NATIVO WG75 100X50GR BAG IN
A49: Oberan Bayer 1lt | B49: OBERON (T) SC240 10X1L BOT IN
A50: Oberon Bayer 200ml*40 | B50: OBERON (T) SC240 40X200ML BOT IN
A51: Planofix 100ml*50 | B51: PLANOFIX SL4 5 50X100ML BOT IN
A52: Regent Bayer 1lt (170) | B52: REGENT (T) SC50 10X1L BOT IN
A53: Regent Bayer 250ml | B53: REGENT (T) SC50 20X250ML BOT IN
A54: Regent Bayer 500ml (173) | B54: REGENT (T) SC50 20X500ML BOT IN
A55: Regent Gold 100ml (220) | B55: REGENT GOLD SC200 50X100ML BOT IN
A56: Regent Gold 250ml (218) | B56: REGENT GOLD SC200 40X250ML BOT IN
A57: Regent Granuals 4kg | B57: REGENT ULTRA GR0 6 5X4KG BAG IN
A58: Section 1kg (183) | B58: SECTIN WG60 10X1KG BAG IN
A59: Section 600gm (203) | B59: SECTIN WG60 20X600GR BAG IN
A60: Simbola 100gm (207) | B60: SIMBOLA (T) SG20 50X100G BOT IN
A61: Sivanto 250ml | B61: SIVANTO PRIME SL200 40X250ML BOT IN
A62: Sivento 1 Lt | B62: SIVANTO PRIME SL200 10X1L BOT IN
A63: Sivento 500ml | B63: SIVANTO PRIME SL200 20X500ML BOT IN
A64: Soloman 1lt | B64: SOLOMON OD300 10X1L BOT IN
A65: Soloman 250 Gm (233) | B65: SOLOMON OD300 40X250ML BOT IN
A66: Soloman 500ml*20 (235) | B66: SOLOMON OD300 20X500ML BOT IN
A67: SPINTER 75ML | B67: SPINTOR SC495 20X75ML BOT IN
A68: Sunrice Bayer 50gm | B68: SUNRICE WG15 100X50GR BOT IN
A69: Super Confider Bayar 500ml(148) | B69: CONFIDOR SUPER (T) SC350 20X500ML BOT IN
A70: Super Confidor 100ml (236) | B70: CONFIDOR SUPER (T) SC350 50X100ML BOT IN
A71: Super Confidor 250ml (151) | B71: CONFIDOR SUPER (T) SC350 20X250ML BOT IN
A72: Super Confidor 50ml (288) | B72: CONFIDOR SUPER (T) SC350 50X50ML BOT IN

Sheet Final Dealer Work
B2: PRODUCT | C2: ITEMALIAS | D2: Bpc | E2: Volume | F2: Opening Qty | G2: Purchase Qty | H2: Purchase Return Qty | I2: Sales Qty | J2: Sales Return Qty | K2: Transfer Qty | L2: Consignment Qty | M2: Adjustment Qty | N2: CLSG
B3: ADMIRE (T) WG70 30X150GR BOT IN | F3: 17 | G3: 120 | H3: 0 | I3: 131 | J3: 0 | K3: 0 | L3: 0 | M3: 0 | N3: 6
B4: ADMIRE (T) WG70 60X75GR BOT IN | F4: 41 | G4: 120 | H4: 0 | I4: 144 | J4: 0 | K4: 0 | L4: 0 | M4: 0 | N4: 17
B5: ADMIRE WG70 125X(8X2GR) BAG IN | F5: 0 | G5: 32 | H5: 0 | I5: 20 | J5: 0 | K5: 0 | L5: 0 | M5: 0 | N5: 12
B6: AGENDA EC25 50X100ML BOT IN | F6: 0 | G6: 0 | H6: 0 | I6: 0 | J6: 0 | K6: 0 | L6: 0 | M6: 0 | N6: 0
B7: ALANTO (T) SC240 40X250ML BOT IN | F7: 17 | G7: 45 | H7: 0 | I7: 57 | J7: 0 | K7: 0 | L7: 0 | M7: 0 | N7: 5
B8: ALIETTE WP80 20X500GR BAG IN | F8: 0 | G8: 10 | H8: 0 | I8: 10 | J8: 0 | K8: 0 | L8: 0 | M8: 0 | N8: 0
B9: ANTRACOL (T) WP70 10X1KG BAG IN | F9: 0 | G9: 470 | H9: 0 | I9: 458 | J9: 0 | K9: 0 | L9: 0 | M9: 0 | N9: 12
B10: ANTRACOL (T) WP70 20X500GR BAG IN | F10: 10 | G10: 460 | H10: 0 | I10: 460 | J10: 0 | K10: 0 | L10: 0 | M10: 0 | N10: 10
B11: ANTRACOL (T) WP70 40X250GR BAG IN | F11: 0 | G11: 120 | H11: 0 | I11: 116 | J11: 0 | K11: 0 | L11: 0 | M11: 0 | N11: 4
B12: CONFIDOR (T) SL200 100X50ML BOT IN | F12: 0 | G12: 40 | H12: 0 | I12: 40 | J12: 0 | K12: 0 | L12: 0 | M12: 0 | N12: 0
B13: CONFIDOR (T) SL200 10X1L BOT IN | F13: 0 | G13: 150 | H13: 0 | I13: 150 | J13: 0 | K13: 0 | L13: 0 | M13: 0 | N13: 0
B14: CONFIDOR (T) SL200 20X250ML BOT IN | F14: 0 | G14: 3475 | H14: 0 | I14: 3480 | J14: 0 | K14: 0 | L14: 0 | M14: 0 | N14: -5
B15: CONFIDOR (T) SL200 20X500ML BOT IN | F15: 6 | G15: 1383 | H15: 0 | I15: 1385 | J15: 0 | K15: 0 | L15: 0 | M15: 0 | N15: 4
B16: CONFIDOR (T) SL200 50X100ML BOT IN | F16: 10 | G16: 3699 | H16: 0 | I16: 3735 | J16: 0 | K16: 0 | L16: 0 | M16: 0 | N16: -26
B17: CONFIDOR SUPER (T) SC350 20X250ML BOT IN | F17: 14 | G17: 1207 | H17: 0 | I17: 1205 | J17: 0 | K17: 0 | L17: 0 | M17: 0 | N17: 16
B18: CONFIDOR SUPER (T) SC350 20X500ML BOT IN | F18: 24 | G18: 363 | H18: 0 | I18: 373 | J18: 0 | K18: 0 | L18: 0 | M18: 0 | N18: 14
B19: CONFIDOR SUPER (T) SC350 50X100ML BOT IN | F19: 0 | G19: 1200 | H19: 0 | I19: 1198 | J19: 0 | K19: 0 | L19: 0 | M19: 0 | N19: 2
B20: CONFIDOR SUPER (T) SC350 50X50ML BOT IN | F20: 0 | G20: 245 | H20: 0 | I20: 241 | J20: 0 | K20: 0 | L20: 0 | M20: 0 | N20: 4
B21: COUNCIL ACTIV WG30 12X(5X90GR) BOX IN | F21: 0 | G21: 5 | H21: 0 | I21: 5 | J21: 0 | K21: 0 | L21: 0 | M21: 0 | N21: 0
B22: DECIS EC 28 40X250ML BOT IN | F22: 0 | G22: 396 | H22: 0 | I22: 36 | J22: 0 | K22: 0 | L22: 0 | M22: 0 | N22: 360
B23: DECIS EC 28 50X100ML BOT IN | F23: 97 | G23: 50 | H23: 0 | I23: 63 | J23: 0 | K23: 0 | L23: 0 | M23: 0 | N23: 84
B24: EVERGOL XTEND FS308 100X40ML BOT IN | F24: 0 | G24: 500 | H24: 0 | I24: 375 | J24: 0 | K24: 0 | L24: 0 | M24: 0 | N24: 125
B25: EVERGOL XTEND FS308 50X100ML BOT IN | F25: 0 | G25: 157 | H25: 0 | I25: 157 | J25: 0 | K25: 0 | L25: 0 | M25: 0 | N25: 0
B26: FAME (T) SC480 10X(20X10ML) BOT IN | F26: 8 | G26: 1000 | H26: 0 | I26: 1007 | J26: 0 | K26: 0 | L26: 0 | M26: 0 | N26: 1
B27: FAME (T) SC480 20X100ML BOT IN | F27: 9 | G27: 3960 | H27: 0 | I27: 3485 | J27: 0 | K27: 0 | L27: 0 | M27: 0 | N27: 484
B28: FAME (T) SC480 40X50ML BOT IN | F28: 0 | G28: 7177 | H28: 0 | I28: 6364 | J28: 0 | K28: 0 | L28: 0 | M28: 0 | N28: 813
B29: FAME (T) SC480 8X250ML BOT IN | F29: 0 | G29: 16 | H29: 0 | I29: 12 | J29: 0 | K29: 0 | L29: 0 | M29: 0 | N29: 4
B30: FOLICUR (T) EC250 40X250ML BOT IN | F30: 0 | G30: 82 | H30: 0 | I30: 82 | J30: 0 | K30: 0 | L30: 0 | M30: 0 | N30: 0
B31: FOOST WP50 20X250G BAG IN | F31: 0 | G31: 896 | H31: 0 | I31: 990 | J31: 0 | K31: 0 | L31: 0 | M31: 0 | N31: -94
B32: FOOST WP50 24X500G BAG IN | F32: 212 | G32: 4812 | H32: 0 | I32: 4458 | J32: 0 | K32: 0 | L32: 0 | M32: 0 | N32: 566
B33: GAUCHO FS600 100X50ML BOT IN | F33: 0 | G33: 120 | H33: 0 | I33: 108 | J33: 0 | K33: 0 | L33: 0 | M33: 0 | N33: 12
B34: GAUCHO FS600 50X100ML BOT IN | F34: 66 | G34: 370 | H34: 0 | I34: 381 | J34: 0 | K34: 0 | L34: 0 | M34: 0 | N34: 55
B35: JUMP WG80 160X(10X2GR) BAG IN | F35: 0 | G35: 1630 | H35: 0 | I35: 1613 | J35: 0 | K35: 0 | L35: 0 | M35: 0 | N35: 17
B36: JUMP WG80 80X40GR BAG IN | F36: 0 | G36: 240 | H36: 0 | I36: 240 | J36: 0 | K36: 0 | L36: 0 | M36: 0 | N36: 0
B37: LARVIN (T) WP75 10X1KG BAG IN | F37: 6 | G37: 21 | H37: 0 | I37: 16 | J37: 0 | K37: 0 | L37: 0 | M37: 0 | N37: 11
B38: LARVIN (T) WP75 20X250GR BAG IN | F38: 0 | G38: 40 | H38: 0 | I38: 39 | J38: 0 | K38: 0 | L38: 0 | M38: 0 | N38: 1
B39: LARVIN (T) WP75 20X500GR BAG IN | F39: 3 | G39: 42 | H39: 0 | I39: 50 | J39: 0 | K39: 0 | L39: 0 | M39: 0 | N39: -5
B40: LAUDIS SC630 10X57.5ML BOT IN | F40: 5 | G40: 1040 | H40: 0 | I40: 1027 | J40: 0 | K40: 0 | L40: 0 | M40: 0 | N40: 18
B41: LAUDIS SC630 3X230ML BOT IN | F41: 3 | G41: 585 | H41: 0 | I41: 543 | J41: 0 | K41: 0 | L41: 0 | M41: 0 | N41: 45
B42: LAUDIS SC630 8X115ML BOT IN | F42: 28 | G42: 3455 | H42: 0 | I42: 3283 | J42: 0 | K42: 0 | L42: 0 | M42: 0 | N42: 200
B43: LESENTA WG80 100X40GR BAG IN | F43: 7 | G43: 100 | H43: 0 | I43: 32 | J43: 0 | K43: 0 | L43: 0 | M43: 0 | N43: 75
B44: LESENTA WG80 20X250GR BAG IN | F44: 10 | G44: 60 | H44: 0 | I44: 50 | J44: 0 | K44: 0 | L44: 0 | M44: 0 | N44: 20
B45: LESENTA WG80 50X100GR BAG IN | F45: 0 | G45: 400 | H45: 0 | I45: 370 | J45: 0 | K45: 0 | L45: 0 | M45: 0 | N45: 30
B46: MOVENTO OD150 10X1L BOT IN | F46: 12 | G46: 10 | H46: 0 | I46: 17 | J46: 0 | K46: 0 | L46: 0 | M46: 0 | N46: 5
B47: MOVENTO OD150 40X250ML BOT IN | F47: 0 | G47: 200 | H47: 0 | I47: 195 | J47: 0 | K47: 0 | L47: 0 | M47: 0 | N47: 5
B48: NATIVO WG75 100X50GR BAG IN | F48: 26 | G48: 100 | H48: 0 | I48: 66 | J48: 0 | K48: 0 | L48: 0 | M48: 0 | N48: 60
B49: NATIVO WG75 20X(10X10GR) BAG IN | F49: 0 | G49: 30 | H49: 0 | I49: 2 | J49: 0 | K49: 0 | L49: 0 | M49: 0 | N49: 28
B50: NATIVO WG75 20X500GR BAG IN | F50: 7 | G50: 40 | H50: 0 | I50: 40 | J50: 0 | K50: 0 | L50: 0 | M50: 0 | N50: 7
B51: NATIVO WG75 40X250GR BAG IN | F51: 0 | G51: 648 | H51: 0 | I51: 621 | J51: 0 | K51: 0 | L51: 0 | M51: 0 | N51: 27
B52: NATIVO WG75 50X100GR BAG IN | F52: 8 | G52: 4007 | H52: 0 | I52: 3878 | J52: 0 | K52: 0 | L52: 0 | M52: 0 | N52: 137
B53: OBERON (T) SC240 10X1L BOT IN | F53: 0 | G53: 90 | H53: 0 | I53: 90 | J53: 0 | K53: 0 | L53: 0 | M53: 0 | N53: 0
B54: OBERON (T) SC240 40X200ML BOT IN | F54: 0 | G54: 90 | H54: 0 | I54: 90 | J54: 0 | K54: 0 | L54: 0 | M54: 0 | N54: 0
B55: PLANOFIX SL4 5 50X100ML BOT IN | F55: 22 | G55: 750 | H55: 0 | I55: 730 | J55: 0 | K55: 0 | L55: 0 | M55: 0 | N55: 42
B56: REGENT (T) SC50 10X1L BOT IN | F56: 4 | G56: 4641 | H56: 0 | I56: 4632 | J56: 0 | K56: 0 | L56: 0 | M56: 0 | N56: 13
B57: REGENT (T) SC50 20X250ML BOT IN | F57: 21 | G57: 1940 | H57: 0 | I57: 1960 | J57: 0 | K57: 0 | L57: 0 | M57: 0 | N57: 1
B58: REGENT (T) SC50 20X500ML BOT IN | F58: 0 | G58: 4841 | H58: 0 | I58: 4845 | J58: 0 | K58: 0 | L58: 0 | M58: 0 | N58: -4
B59: REGENT GOLD SC200 40X250ML BOT IN | F59: 20 | G59: 81 | H59: 0 | I59: 93 | J59: 0 | K59: 0 | L59: 0 | M59: 0 | N59: 8
B60: REGENT GOLD SC200 50X100ML BOT IN | F60: 17 | G60: 51 | H60: 0 | I60: 67 | J60: 0 | K60: 0 | L60: 0 | M60: 0 | N60: 1
B61: REGENT ULTRA GR0 6 5X4KG BAG IN | F61: 0 | G61: 203 | H61: 0 | I61: 163 | J61: 0 | K61: 0 | L61: 0 | M61: 0 | N61: 40
B62: SECTIN WG60 10X1KG BAG IN | F62: 0 | G62: 40 | H62: 0 | I62: 40 | J62: 0 | K62: 0 | L62: 0 | M62: 0 | N62: 0
B63: SECTIN WG60 20X600GR BAG IN | F63: 32 | G63: 0 | H63: 0 | I63: 32 | J63: 0 | K63: 0 | L63: 0 | M63: 0 | N63: 0
B64: SIMBOLA (T) SG20 50X100G BOT IN | F64: 7 | G64: 70 | H64: 0 | I64: 22 | J64: 0 | K64: 0 | L64: 0 | M64: 0 | N64: 55
B65: SIVANTO PRIME SL200 10X1L BOT IN | F65: 7 | G65: 0 | H65: 0 | I65: 1 | J65: 0 | K65: 0 | L65: 0 | M65: 0 | N65: 6
B66: SIVANTO PRIME SL200 20X500ML BOT IN | F66: 15 | G66: 0 | H66: 0 | I66: 2 | J66: 0 | K66: 0 | L66: 0 | M66: 0 | N66: 13
B67: SIVANTO PRIME SL200 40X250ML BOT IN | F67: 30 | G67: 0 | H67: 0 | I67: 30 | J67: 0 | K67: 0 | L67: 0 | M67: 0 | N67: 0
B68: SOLOMON OD300 10X1L BOT IN | F68: 0 | G68: 83 | H68: 0 | I68: 84 | J68: 0 | K68: 0 | L68: 0 | M68: 0 | N68: -1
B69: SOLOMON OD300 20X500ML BOT IN | F69: 0 | G69: 80 | H69: 0 | I69: 81 | J69: 0 | K69: 0 | L69: 0 | M69: 0 | N69: -1
B70: SOLOMON OD300 40X250ML BOT IN | F70: 41 | G70: 80 | H70: 0 | I70: 74 | J70: 0 | K70: 0 | L70: 0 | M70: 0 | N70: 47
B71: SPINTOR SC495 20X75ML BOT IN | F71: 21 | G71: 0 | H71: 0 | I71: 0 | J71: 0 | K71: 0 | L71: 0 | M71: 0 | N71: 21
B72: SUNRICE WG15 100X50GR BOT IN | F72: 50 | G72: 0 | H72: 0 | I72: 50 | J72: 0 | K72: 0 | L72: 0 | M72: 0 | N72: 0
B73: Grand Total | F73: 933 | G73: 58368 | H73: 0 | I73: 55894 | J73: 0 | K73: 0 | L73: 0 | M73: 0 | N73: 3407

Sheet Zylem SNS Report
A2: Company Name:-BAYER
A3: Stock and Sales FOR THE PERIOD 01-Apr-2020 TO 31-Mar-2021
A4: Generated on 6/10/2021 5:59:42 AM
A5: DISTRIBUTOR PRODUCTWISE
A6: OUTPUT IN : PIC,DETAILS AS : Column,CONSIDER : Voucher Date,INCLUDE VALIDATION : False
A7: DISTRIBUTOR:M/S Shiv Shankar KiranaandFertil,
A8: DISTRIBUTOR | B8: SAPCODE | C8: PRODUCT | D8: ITEMALIAS | E8: Opening Qty | F8: Purchase Qty | G8: Purchase Return Qty | H8: Sales Qty | I8: Sales Return Qty | J8: Transfer Qty | K8: Consignment Qty | L8: Adjustment Qty | M8: CLSG
A9: M/S Shiv Shankar KiranaandFertil | B9: 3902223 | C9: ADMIRE (T) WG70 30X150GR BOT IN | D9: 79277857 | E9: 17 | F9: 120 | G9: 0 | H9: 131 | I9: 0 | J9: 0 | K9: 0 | L9: 0 | M9: 6
A10: M/S Shiv Shankar KiranaandFertil | B10: 3902223 | C10: ADMIRE (T) WG70 60X75GR BOT IN | D10: 79297696 | E10: 41 | F10: 120 | G10: 0 | H10: 144 | I10: 0 | J10: 0 | K10: 0 | L10: 0 | M10: 17
A11: M/S Shiv Shankar KiranaandFertil | B11: 3902223 | C11: ADMIRE WG70 125X(8X2GR) BAG IN | D11: 6101665 | E11: 0 | F11: 32 | G11: 0 | H11: 20 | I11: 0 | J11: 0 | K11: 0 | L11: 0 | M11: 12
A12: M/S Shiv Shankar KiranaandFertil | B12: 3902223 | C12: ADUE WG70 6X100G BOT IN | D12: 80890362 | E12: 0 | F12: 0 | G12: 0 | H12: 0 | I12: 0 | J12: 0 | K12: 0 | L12: 0 | M12: 0
A13: M/S Shiv Shankar KiranaandFertil | B13: 3902223 | C13: ALANTO (T) SC240 40X250ML BOT IN | D13: 79915713 | E13: 17 | F13: 65 | G13: 20 | H13: 57 | I13: 0 | J13: 0 | K13: 0 | L13: 0 | M13: 5
A14: M/S Shiv Shankar KiranaandFertil | B14: 3902223 | C14: ALIETTE WP80 20X250GR BAG IN | D14: 3822358 | E14: 0 | F14: 0 | G14: 0 | H14: 0 | I14: 0 | J14: 0 | K14: 0 | L14: 0 | M14: 0
A15: M/S Shiv Shankar KiranaandFertil | B15: 3902223 | C15: ALIETTE WP80 20X500GR BAG IN | D15: 3822366 | E15: 0 | F15: 10 | G15: 0 | H15: 10 | I15: 0 | J15: 0 | K15: 0 | L15: 0 | M15: 0
A16: M/S Shiv Shankar KiranaandFertil | B16: 3902223 | C16: ANTRACOL (T) WP70 10X1KG BAG IN | D16: 6077322 | E16: 0 | F16: 470 | G16: 0 | H16: 466 | I16: 8 | J16: 0 | K16: 0 | L16: 0 | M16: 12
A17: M/S Shiv Shankar KiranaandFertil | B17: 3902223 | C17: ANTRACOL (T) WP70 20X500GR BAG IN | D17: 5999978 | E17: 10 | F17: 460 | G17: 0 | H17: 460 | I17: 0 | J17: 0 | K17: 0 | L17: 0 | M17: 10
A18: M/S Shiv Shankar KiranaandFertil | B18: 3902223 | C18: ANTRACOL (T) WP70 40X250GR BAG IN | D18: 6112179 | E18: 0 | F18: 120 | G18: 0 | H18: 116 | I18: 0 | J18: 0 | K18: 0 | L18: 0 | M18: 4
A19: M/S Shiv Shankar KiranaandFertil | B19: 3902223 | C19: CONFIDOR (T) SL200 100X50ML BOT IN | D19: 5708361 | E19: 0 | F19: 40 | G19: 0 | H19: 40 | I19: 0 | J19: 0 | K19: 0 | L19: 0 | M19: 0
A20: M/S Shiv Shankar KiranaandFertil | B20: 3902223 | C20: CONFIDOR (T) SL200 10X1L BOT IN | D20: 5697343 | E20: 0 | F20: 150 | G20: 0 | H20: 150 | I20: 0 | J20: 0 | K20: 0 | L20: 0 | M20: 0
A21: M/S Shiv Shankar KiranaandFertil | B21: 3902223 | C21: CONFIDOR (T) SL200 20X250ML BOT IN | D21: 5699494 | E21: 0 | F21: 3735 | G21: 260 | H21: 3486 | I21: 6 | J21: 0 | K21: 0 | L21: 0 | M21: -5
A22: M/S Shiv Shankar KiranaandFertil | B22: 3902223 | C22: CONFIDOR (T) SL200 20X500ML BOT IN | D22: 5704439 | E22: 6 | F22: 1383 | G22: 0 | H22: 1385 | I22: 0 | J22: 0 | K22: 0 | L22: 0 | M22: 4
A23: M/S Shiv Shankar KiranaandFertil | B23: 3902223 | C23: CONFIDOR (T) SL200 50X100ML BOT IN | D23: 5703475 | E23: 10 | F23: 4049 | G23: 350 | H23: 3790 | I23: 55 | J23: 0 | K23: 0 | L23: 0 | M23: -26
A24: M/S Shiv Shankar KiranaandFertil | B24: 3902223 | C24: CONFIDOR SUPER (T) SC350 20X250ML BOT IN | D24: 79710852 | E24: 14 | F24: 1206 | G24: 0 | H24: 1210 | I24: 5 | J24: 0 | K24: 0 | L24: 0 | M24: 15
A25: M/S Shiv Shankar KiranaandFertil | B25: 3902223 | C25: CONFIDOR SUPER (T) SC350 20X500ML BOT IN | D25: 79734727 | E25: 24 | F25: 443 | G25: 80 | H25: 373 | I25: 0 | J25: 0 | K25: 0 | L25: 0 | M25: 14
A26: M/S Shiv Shankar KiranaandFertil | B26: 3902223 | C26: CONFIDOR SUPER (T) SC350 50X100ML BOT IN | D26: 79735219 | E26: 0 | F26: 1850 | G26: 650 | H26: 1206 | I26: 8 | J26: 0 | K26: 0 | L26: 0 | M26: 2
A27: M/S Shiv Shankar KiranaandFertil | B27: 3902223 | C27: CONFIDOR SUPER (T) SC350 50X50ML BOT IN | D27: 79985169 | E27: 0 | F27: 445 | G27: 200 | H27: 241 | I27: 0 | J27: 0 | K27: 0 | L27: 0 | M27: 4
A28: M/S Shiv Shankar KiranaandFertil | B28: 3902223 | C28: COUNCIL ACTIV WG30 12X(5X90GR) BOX IN | D28: 80882629 | E28: 0 | F28: 5 | G28: 0 | H28: 5 | I28: 0 | J28: 0 | K28: 0 | L28: 0 | M28: 0
A29: M/S Shiv Shankar KiranaandFertil | B29: 3902223 | C29: DECIS EC 28 40X250ML BOT IN | D29: 3823346 | E29: 0 | F29: 396 | G29: 0 | H29: 36 | I29: 0 | J29: 0 | K29: 0 | L29: 0 | M29: 360
A30: M/S Shiv Shankar KiranaandFertil | B30: 3902223 | C30: EVERGOL XTEND FS308 100X40ML BOT IN | D30: 85402838 | E30: 0 | F30: 500 | G30: 0 | H30: 375 | I30: 0 | J30: 0 | K30: 0 | L30: 0 | M30: 125
A31: M/S Shiv Shankar KiranaandFertil | B31: 3902223 | C31: EVERGOL XTEND FS308 50X100ML BOT IN | D31: 84065757 | E31: 0 | F31: 157 | G31: 0 | H31: 157 | I31: 0 | J31: 0 | K31: 0 | L31: 0 | M31: 0
A32: M/S Shiv Shankar KiranaandFertil | B32: 3902223 | C32: FAME (T) SC480 10X(20X10ML) BOT IN | D32: 79305885 | E32: 8 | F32: 1000 | G32: 0 | H32: 1007 | I32: 0 | J32: 0 | K32: 0 | L32: 0 | M32: 1
A33: M/S Shiv Shankar KiranaandFertil | B33: 3902223 | C33: FAME (T) SC480 20X100ML BOT IN | D33: 79266197 | E33: 9 | F33: 3960 | G33: 0 | H33: 3485 | I33: 0 | J33: 0 | K33: 0 | L33: 0 | M33: 484
A34: M/S Shiv Shankar KiranaandFertil | B34: 3902223 | C34: FAME (T) SC480 40X50ML BOT IN | D34: 79224699 | E34: 0 | F34: 7257 | G34: 80 | H34: 6364 | I34: 0 | J34: 0 | K34: 0 | L34: 0 | M34: 813
A35: M/S Shiv Shankar KiranaandFertil | B35: 3902223 | C35: FAME (T) SC480 8X250ML BOT IN | D35: 80183291 | E35: 0 | F35: 16 | G35: 0 | H35: 12 | I35: 0 | J35: 0 | K35: 0 | L35: 0 | M35: 4
A36: M/S Shiv Shankar KiranaandFertil | B36: 3902223 | C36: FOLICUR (T) EC250 40X250ML BOT IN | D36: 79682271 | E36: 0 | F36: 82 | G36: 0 | H36: 82 | I36: 0 | J36: 0 | K36: 0 | L36: 0 | M36: 0
A37: M/S Shiv Shankar KiranaandFertil | B37: 3902223 | C37: FOOST WP50 20X250G BAG IN | D37: 85760270 | E37: 0 | F37: 896 | G37: 0 | H37: 990 | I37: 0 | J37: 0 | K37: 0 | L37: 0 | M37: -94
A38: M/S Shiv Shankar KiranaandFertil | B38: 3902223 | C38: FOOST WP50 24X500G BAG IN | D38: 85811770 | E38: 212 | F38: 4811 | G38: 0 | H38: 4464 | I38: 6 | J38: 0 | K38: 0 | L38: 0 | M38: 565
A39: M/S Shiv Shankar KiranaandFertil | B39: 3902223 | C39: GAUCHO FS600 100X50ML BOT IN | D39: 80034733 | E39: 0 | F39: 120 | G39: 0 | H39: 108 | I39: 0 | J39: 0 | K39: 0 | L39: 0 | M39: 12
A40: M/S Shiv Shankar KiranaandFertil | B40: 3902223 | C40: GAUCHO FS600 50X100ML BOT IN | D40: 79664141 | E40: 66 | F40: 370 | G40: 0 | H40: 381 | I40: 0 | J40: 0 | K40: 0 | L40: 0 | M40: 55
A41: M/S Shiv Shankar KiranaandFertil | B41: 3902223 | C41: JUMP WG80 160X(10X2GR) BAG IN | D41: 79215304 | E41: 0 | F41: 1630 | G41: 0 | H41: 1613 | I41: 0 | J41: 0 | K41: 0 | L41: 0 | M41: 17
A42: M/S Shiv Shankar KiranaandFertil | B42: 3902223 | C42: JUMP WG80 80X40GR BAG IN | D42: 79267509 | E42: 0 | F42: 240 | G42: 0 | H42: 240 | I42: 0 | J42: 0 | K42: 0 | L42: 0 | M42: 0
A43: M/S Shiv Shankar KiranaandFertil | B43: 3902223 | C43: LARVIN (T) WP75 10X1KG BAG IN | D43: 6005062 | E43: 6 | F43: 20 | G43: 0 | H43: 16 | I43: 0 | J43: 0 | K43: 0 | L43: 0 | M43: 10
A44: M/S Shiv Shankar KiranaandFertil | B44: 3902223 | C44: LARVIN (T) WP75 20X250GR BAG IN | D44: 6003167 | E44: 0 | F44: 40 | G44: 0 | H44: 39 | I44: 0 | J44: 0 | K44: 0 | L44: 0 | M44: 1
A45: M/S Shiv Shankar KiranaandFertil | B45: 3902223 | C45: LARVIN (T) WP75 20X500GR BAG IN | D45: 6005291 | E45: 3 | F45: 42 | G45: 0 | H45: 50 | I45: 0 | J45: 0 | K45: 0 | L45: 0 | M45: -5
A46: M/S Shiv Shankar KiranaandFertil | B46: 3902223 | C46: LAUDIS SC630 10X57.5ML BOT IN | D46: 84470481 | E46: 5 | F46: 1040 | G46: 0 | H46: 1027 | I46: 0 | J46: 0 | K46: 0 | L46: 0 | M46: 18
A47: M/S Shiv Shankar KiranaandFertil | B47: 3902223 | C47: LAUDIS SC630 3X230ML BOT IN | D47: 80563523 | E47: 3 | F47: 585 | G47: 0 | H47: 544 | I47: 1 | J47: 0 | K47: 0 | L47: 0 | M47: 45
A48: M/S Shiv Shankar KiranaandFertil | B48: 3902223 | C48: LAUDIS SC630 8X115ML BOT IN | D48: 80491085 | E48: 28 | F48: 3454 | G48: 0 | H48: 3287 | I48: 4 | J48: 0 | K48: 0 | L48: 0 | M48: 199
A49: M/S Shiv Shankar KiranaandFertil | B49: 3902223 | C49: LESENTA WG80 100X40GR BAG IN | D49: 80500823 | E49: 7 | F49: 100 | G49: 0 | H49: 32 | I49: 0 | J49: 0 | K49: 0 | L49: 0 | M49: 75
A50: M/S Shiv Shankar KiranaandFertil | B50: 3902223 | C50: LESENTA WG80 20X250GR BAG IN | D50: 80557817 | E50: 10 | F50: 60 | G50: 0 | H50: 53 | I50: 3 | J50: 0 | K50: 0 | L50: 0 | M50: 20
A51: M/S Shiv Shankar KiranaandFertil | B51: 3902223 | C51: LESENTA WG80 50X100GR BAG IN | D51: 80503385 | E51: 0 | F51: 400 | G51: 0 | H51: 379 | I51: 9 | J51: 0 | K51: 0 | L51: 0 | M51: 30
A52: M/S Shiv Shankar KiranaandFertil | B52: 3902223 | C52: MOVENTO OD150 10X1L BOT IN | D52: 81732884 | E52: 12 | F52: 10 | G52: 0 | H52: 18 | I52: 1 | J52: 0 | K52: 0 | L52: 0 | M52: 5
A53: M/S Shiv Shankar KiranaandFertil | B53: 3902223 | C53: MOVENTO OD150 40X250ML BOT IN | D53: 81714150 | E53: 0 | F53: 200 | G53: 0 | H53: 205 | I53: 10 | J53: 0 | K53: 0 | L53: 0 | M53: 5
A54: M/S Shiv Shankar KiranaandFertil | B54: 3902223 | C54: NATIVO WG75 100X50GR BAG IN | D54: 80580061 | E54: 26 | F54: 100 | G54: 0 | H54: 66 | I54: 0 | J54: 0 | K54: 0 | L54: 0 | M54: 60
A55: M/S Shiv Shankar KiranaandFertil | B55: 3902223 | C55: NATIVO WG75 20X(10X10GR) BAG IN | D55: 80899920 | E55: 0 | F55: 30 | G55: 0 | H55: 2 | I55: 0 | J55: 0 | K55: 0 | L55: 0 | M55: 28
A56: M/S Shiv Shankar KiranaandFertil | B56: 3902223 | C56: NATIVO WG75 20X500GR BAG IN | D56: 79198698 | E56: 7 | F56: 40 | G56: 0 | H56: 40 | I56: 0 | J56: 0 | K56: 0 | L56: 0 | M56: 7
A57: M/S Shiv Shankar KiranaandFertil | B57: 3902223 | C57: NATIVO WG75 40X250GR BAG IN | D57: 79237790 | E57: 0 | F57: 648 | G57: 0 | H57: 622 | I57: 1 | J57: 0 | K57: 0 | L57: 0 | M57: 27
A58: M/S Shiv Shankar KiranaandFertil | B58: 3902223 | C58: NATIVO WG75 50X100GR BAG IN | D58: 79304102 | E58: 8 | F58: 4007 | G58: 0 | H58: 3878 | I58: 0 | J58: 0 | K58: 0 | L58: 0 | M58: 137
A59: M/S Shiv Shankar KiranaandFertil | B59: 3902223 | C59: OBERON (T) SC240 10X1L BOT IN | D59: 80209037 | E59: 0 | F59: 90 | G59: 0 | H59: 90 | I59: 0 | J59: 0 | K59: 0 | L59: 0 | M59: 0
A60: M/S Shiv Shankar KiranaandFertil | B60: 3902223 | C60: OBERON (T) SC240 40X200ML BOT IN | D60: 79971362 | E60: 0 | F60: 90 | G60: 0 | H60: 90 | I60: 0 | J60: 0 | K60: 0 | L60: 0 | M60: 0
A61: M/S Shiv Shankar KiranaandFertil | B61: 3902223 | C61: PLANOFIX SL4 5 50X100ML BOT IN | D61: 3825098 | E61: 22 | F61: 750 | G61: 0 | H61: 730 | I61: 0 | J61: 0 | K61: 0 | L61: 0 | M61: 42
A62: M/S Shiv Shankar KiranaandFertil | B62: 3902223 | C62: REGENT (T) SC50 20X250ML BOT IN | D62: 5976951 | E62: 21 | F62: 1940 | G62: 0 | H62: 1968 | I62: 8 | J62: 0 | K62: 0 | L62: 0 | M62: 1
A63: M/S Shiv Shankar KiranaandFertil | B63: 3902223 | C63: REGENT (T) SC50 20X500ML BOT IN | D63: 5987678 | E63: 0 | F63: 4841 | G63: 0 | H63: 4871 | I63: 26 | J63: 0 | K63: 0 | L63: 0 | M63: -4
A64: M/S Shiv Shankar KiranaandFertil | B64: 3902223 | C64: REGENT GOLD SC200 20X500ML BOT IN | D64: 81741565 | E64: 0 | F64: 0 | G64: 0 | H64: 0 | I64: 0 | J64: 0 | K64: 0 | L64: 0 | M64: 0
A65: M/S Shiv Shankar KiranaandFertil | B65: 3902223 | C65: REGENT GOLD SC200 40X250ML BOT IN | D65: 84126616 | E65: 20 | F65: 80 | G65: 0 | H65: 93 | I65: 0 | J65: 0 | K65: 0 | L65: 0 | M65: 7
A66: M/S Shiv Shankar KiranaandFertil | B66: 3902223 | C66: REGENT GOLD SC200 50X100ML BOT IN | D66: 84133965 | E66: 17 | F66: 50 | G66: 0 | H66: 67 | I66: 0 | J66: 0 | K66: 0 | L66: 0 | M66: 0
A67: M/S Shiv Shankar KiranaandFertil | B67: 3902223 | C67: REGENT ULTRA GR0 6 5X4KG BAG IN | D67: 84093394 | E67: 0 | F67: 203 | G67: 0 | H67: 163 | I67: 0 | J67: 0 | K67: 0 | L67: 0 | M67: 40
A68: M/S Shiv Shankar KiranaandFertil | B68: 3902223 | C68: REGENT ULTRA GR0.6 2X10KG BAG IN | D68: 85826182 | E68: 0 | F68: 0 | G68: 0 | H68: 0 | I68: 0 | J68: 0 | K68: 0 | L68: 0 | M68: 0
A69: M/S Shiv Shankar KiranaandFertil | B69: 3902223 | C69: SECTIN WG60 10X1KG BAG IN | D69: 6132374 | E69: 0 | F69: 40 | G69: 0 | H69: 40 | I69: 0 | J69: 0 | K69: 0 | L69: 0 | M69: 0
A70: M/S Shiv Shankar KiranaandFertil | B70: 3902223 | C70: SECTIN WG60 50X100GR BAG IN | D70: 5950812 | E70: 0 | F70: 0 | G70: 0 | H70: 0 | I70: 0 | J70: 0 | K70: 0 | L70: 0 | M70: 0
A71: M/S Shiv Shankar KiranaandFertil | B71: 3902223 | C71: SIMBOLA (T) SG20 50X100G BOT IN | D71: 85767860 | E71: 7 | F71: 70 | G71: 0 | H71: 22 | I71: 0 | J71: 0 | K71: 0 | L71: 0 | M71: 55
A72: M/S Shiv Shankar KiranaandFertil | B72: 3902223 | C72: SIVANTO PRIME SL200 10X1L BOT IN | D72: 80894104 | E72: 7 | F72: 0 | G72: 0 | H72: 1 | I72: 0 | J72: 0 | K72: 0 | L72: 0 | M72: 6
A73: M/S Shiv Shankar KiranaandFertil | B73: 3902223 | C73: SIVANTO PRIME SL200 20X500ML BOT IN | D73: 80845782 | E73: 15 | F73: 0 | G73: 0 | H73: 2 | I73: 0 | J73: 0 | K73: 0 | L73: 0 | M73: 13
A74: M/S Shiv Shankar KiranaandFertil | B74: 3902223 | C74: SIVANTO PRIME SL200 40X250ML BOT IN | D74: 80895909 | E74: 30 | F74: 0 | G74: 0 | H74: 30 | I74: 0 | J74: 0 | K74: 0 | L74: 0 | M74: 0
A75: M/S Shiv Shankar KiranaandFertil | B75: 3902223 | C75: SOLOMON OD300 10X1L BOT IN | D75: 79637365 | E75: 0 | F75: 83 | G75: 0 | H75: 84 | I75: 0 | J75: 0 | K75: 0 | L75: 0 | M75: -1
A76: M/S Shiv Shankar KiranaandFertil | B76: 3902223 | C76: SOLOMON OD300 20X500ML BOT IN | D76: 79987870 | E76: 0 | F76: 80 | G76: 0 | H76: 81 | I76: 0 | J76: 0 | K76: 0 | L76: 0 | M76: -1
A77: M/S Shiv Shankar KiranaandFertil | B77: 3902223 | C77: SOLOMON OD300 40X250ML BOT IN | D77: 79706723 | E77: 41 | F77: 160 | G77: 80 | H77: 74 | I77: 0 | J77: 0 | K77: 0 | L77: 0 | M77: 47
A78: M/S Shiv Shankar KiranaandFertil | B78: 3902223 | C78: SPINTOR SC495 20X75ML BOT IN | D78: 3826566 | E78: 21 | F78: 0 | G78: 0 | H78: 0 | I78: 0 | J78: 0 | K78: 0 | L78: 0 | M78: 21
A79: M/S Shiv Shankar KiranaandFertil | B79: 3902223 | C79: SUNRICE WG15 100X50GR BOT IN | D79: 80219121 | E79: 50 | F79: 0 | G79: 0 | H79: 50 | I79: 0 | J79: 0 | K79: 0 | L79: 0 | M79: 0
A80: M/S Shiv Shankar KiranaandFertil | B80: 3902223 | C80: DECIS EC 28 50X100ML BOT IN | D80: 3823311 | E80: 97 | F80: 50 | G80: 0 | H80: 63 | I80: 0 | J80: 0 | K80: 0 | L80: 0 | M80: 84
A81: M/S Shiv Shankar KiranaandFertil | B81: 3902223 | C81: SECTIN WG60 20X600GR BAG IN | D81: 6000664 | E81: 32 | F81: 0 | G81: 0 | H81: 32 | I81: 0 | J81: 0 | K81: 0 | L81: 0 | M81: 0
A82: M/S Shiv Shankar KiranaandFertil | B82: 3902223 | C82: REGENT (T) SC50 10X1L BOT IN | D82: 5962667 | E82: 4 | F82: 4640 | G82: 0 | H82: 4664 | I82: 32 | J82: 0 | K82: 0 | L82: 0 | M82: 12
A83: GRANDTOTAL | E83: 933 | F83: 60081 | G83: 1720 | H83: 56077 | I83: 183 | J83: 0 | K83: 0 | L83: 0 | M83: 3400

Sheet OPG
A1: ADMIRE (T) WG70 30X150GR BOT IN | B1: =VLOOKUP(A1,'[2]Product Master Sheet'!$B$2:$F$506,5,0) -> 14 | C1: 17
A2: ADMIRE (T) WG70 60X75GR BOT IN | B2: =VLOOKUP(A2,'[2]Product Master Sheet'!$B$2:$F$506,5,0) -> 15 | C2: 41
A3: ADMIRE WG70 125X(8X2GR) BAG IN | B3: =VLOOKUP(A3,'[2]Product Master Sheet'!$B$2:$F$506,5,0) -> 16 | C3: 0
A4: ADUE WG70 6X100G BOT IN | B4: =VLOOKUP(A4,'[2]Product Master Sheet'!$B$2:$F$506,5,0) -> 26 | C4: 0
A5: ALANTO (T) SC240 40X250ML BOT IN | B5: =VLOOKUP(A5,'[2]Product Master Sheet'!$B$2:$F$506,5,0) -> 29 | C5: 17
A6: ALIETTE WP80 20X250GR BAG IN | B6: =VLOOKUP(A6,'[2]Product Master Sheet'!$B$2:$F$506,5,0) -> 33 | C6: 0
A7: ALIETTE WP80 20X500GR BAG IN | B7: =VLOOKUP(A7,'[2]Product Master Sheet'!$B$2:$F$506,5,0) -> 34 | C7: 0
A8: ANTRACOL (T) WP70 10X1KG BAG IN | B8: =VLOOKUP(A8,'[2]Product Master Sheet'!$B$2:$F$506,5,0) -> 42 | C8: 0
A9: ANTRACOL (T) WP70 20X500GR BAG IN | B9: =VLOOKUP(A9,'[2]Product Master Sheet'!$B$2:$F$506,5,0) -> 43 | C9: 10
A10: ANTRACOL (T) WP70 40X250GR BAG IN | B10: =VLOOKUP(A10,'[2]Product Master Sheet'!$B$2:$F$506,5,0) -> 44 | C10: 0
A11: CONFIDOR (T) SL200 100X50ML BOT IN | B11: =VLOOKUP(A11,'[2]Product Master Sheet'!$B$2:$F$506,5,0) -> 112 | C11: 0
A12: CONFIDOR (T) SL200 10X1L BOT IN | B12: =VLOOKUP(A12,'[2]Product Master Sheet'!$B$2:$F$506,5,0) -> 113 | C12: 0
A13: CONFIDOR (T) SL200 20X250ML BOT IN | B13: =VLOOKUP(A13,'[2]Product Master Sheet'!$B$2:$F$506,5,0) -> 114 | C13: 0
A14: CONFIDOR (T) SL200 20X500ML BOT IN | B14: =VLOOKUP(A14,'[2]Product Master Sheet'!$B$2:$F$506,5,0) -> 115 | C14: 6
A15: CONFIDOR (T) SL200 50X100ML BOT IN | B15: =VLOOKUP(A15,'[2]Product Master Sheet'!$B$2:$F$506,5,0) -> 116 | C15: 10
A16: CONFIDOR SUPER (T) SC350 20X250ML BOT IN | B16: =VLOOKUP(A16,'[2]Product Master Sheet'!$B$2:$F$506,5,0) -> 118 | C16: 14
A17: CONFIDOR SUPER (T) SC350 20X500ML BOT IN | B17: =VLOOKUP(A17,'[2]Product Master Sheet'!$B$2:$F$506,5,0) -> 119 | C17: 24
A18: CONFIDOR SUPER (T) SC350 50X100ML BOT IN | B18: =VLOOKUP(A18,'[2]Product Master Sheet'!$B$2:$F$506,5,0) -> 120 | C18: 0
A19: CONFIDOR SUPER (T) SC350 50X50ML BOT IN | B19: =VLOOKUP(A19,'[2]Product Master Sheet'!$B$2:$F$506,5,0) -> 121 | C19: 0
A20: COUNCIL ACTIV WG30 12X(5X90GR) BOX IN | B20: =VLOOKUP(A20,'[2]Product Master Sheet'!$B$2:$F$506,5,0) -> 122 | C20: 0
A21: DECIS EC 28 40X250ML BOT IN | B21: =VLOOKUP(A21,'[2]Product Master Sheet'!$B$2:$F$506,5,0) -> 126 | C21: 0
A22: EVERGOL XTEND FS308 100X40ML BOT IN | B22: =VLOOKUP(A22,'[2]Product Master Sheet'!$B$2:$F$506,5,0) -> 139 | C22: 0
A23: EVERGOL XTEND FS308 50X100ML BOT IN | B23: =VLOOKUP(A23,'[2]Product Master Sheet'!$B$2:$F$506,5,0) -> 143 | C23: 0
A24: FAME (T) SC480 10X(20X10ML) BOT IN | B24: =VLOOKUP(A24,'[2]Product Master Sheet'!$B$2:$F$506,5,0) -> 144 | C24: 8
A25: FAME (T) SC480 20X100ML BOT IN | B25: =VLOOKUP(A25,'[2]Product Master Sheet'!$B$2:$F$506,5,0) -> 145 | C25: 9
A26: FAME (T) SC480 40X50ML BOT IN | B26: =VLOOKUP(A26,'[2]Product Master Sheet'!$B$2:$F$506,5,0) -> 146 | C26: 0
A27: FAME (T) SC480 8X250ML BOT IN | B27: =VLOOKUP(A27,'[2]Product Master Sheet'!$B$2:$F$506,5,0) -> 148 | C27: 0
A28: FOLICUR (T) EC250 40X250ML BOT IN | B28: =VLOOKUP(A28,'[2]Product Master Sheet'!$B$2:$F$506,5,0) -> 164 | C28: 0
A29: FOOST WP50 20X250G BAG IN | B29: =VLOOKUP(A29,'[2]Product Master Sheet'!$B$2:$F$506,5,0) -> 175 | C29: 0
A30: FOOST WP50 24X500G BAG IN | B30: =VLOOKUP(A30,'[2]Product Master Sheet'!$B$2:$F$506,5,0) -> 177 | C30: 212
A31: GAUCHO FS600 100X50ML BOT IN | B31: =VLOOKUP(A31,'[2]Product Master Sheet'!$B$2:$F$506,5,0) -> 179 | C31: 0
A32: GAUCHO FS600 50X100ML BOT IN | B32: =VLOOKUP(A32,'[2]Product Master Sheet'!$B$2:$F$506,5,0) -> 182 | C32: 66
A33: JUMP WG80 160X(10X2GR) BAG IN | B33: =VLOOKUP(A33,'[2]Product Master Sheet'!$B$2:$F$506,5,0) -> 199 | C33: 0
A34: JUMP WG80 80X40GR BAG IN | B34: =VLOOKUP(A34,'[2]Product Master Sheet'!$B$2:$F$506,5,0) -> 202 | C34: 0
A35: LARVIN (T) WP75 10X1KG BAG IN | B35: =VLOOKUP(A35,'[2]Product Master Sheet'!$B$2:$F$506,5,0) -> 204 | C35: 6
A36: LARVIN (T) WP75 20X250GR BAG IN | B36: =VLOOKUP(A36,'[2]Product Master Sheet'!$B$2:$F$506,5,0) -> 205 | C36: 0
A37: LARVIN (T) WP75 20X500GR BAG IN | B37: =VLOOKUP(A37,'[2]Product Master Sheet'!$B$2:$F$506,5,0) -> 206 | C37: 3
A38: LAUDIS SC630 10X57.5ML BOT IN | B38: =VLOOKUP(A38,'[2]Product Master Sheet'!$B$2:$F$506,5,0) -> 210 | C38: 5
A39: LAUDIS SC630 3X230ML BOT IN | B39: =VLOOKUP(A39,'[2]Product Master Sheet'!$B$2:$F$506,5,0) -> 211 | C39: 3
A40: LAUDIS SC630 8X115ML BOT IN | B40: =VLOOKUP(A40,'[2]Product Master Sheet'!$B$2:$F$506,5,0) -> 212 | C40: 28
A41: LESENTA WG80 100X40GR BAG IN | B41: =VLOOKUP(A41,'[2]Product Master Sheet'!$B$2:$F$506,5,0) -> 215 | C41: 7
A42: LESENTA WG80 20X250GR BAG IN | B42: =VLOOKUP(A42,'[2]Product Master Sheet'!$B$2:$F$506,5,0) -> 217 | C42: 10
A43: LESENTA WG80 50X100GR BAG IN | B43: =VLOOKUP(A43,'[2]Product Master Sheet'!$B$2:$F$506,5,0) -> 219 | C43: 0
A44: MOVENTO OD150 10X1L BOT IN | B44: =VLOOKUP(A44,'[2]Product Master Sheet'!$B$2:$F$506,5,0) -> 275 | C44: 12
A45: MOVENTO OD150 40X250ML BOT IN | B45: =VLOOKUP(A45,'[2]Product Master Sheet'!$B$2:$F$506,5,0) -> 277 | C45: 0
A46: NATIVO WG75 100X50GR BAG IN | B46: =VLOOKUP(A46,'[2]Product Master Sheet'!$B$2:$F$506,5,0) -> 289 | C46: 26
A47: NATIVO WG75 20X(10X10GR) BAG IN | B47: =VLOOKUP(A47,'[2]Product Master Sheet'!$B$2:$F$506,5,0) -> 291 | C47: 0
A48: NATIVO WG75 20X500GR BAG IN | B48: =VLOOKUP(A48,'[2]Product Master Sheet'!$B$2:$F$506,5,0) -> 292 | C48: 7
A49: NATIVO WG75 40X250GR BAG IN | B49: =VLOOKUP(A49,'[2]Product Master Sheet'!$B$2:$F$506,5,0) -> 293 | C49: 0
A50: NATIVO WG75 50X100GR BAG IN | B50: =VLOOKUP(A50,'[2]Product Master Sheet'!$B$2:$F$506,5,0) -> 294 | C50: 8
A51: OBERON (T) SC240 10X1L BOT IN | B51: =VLOOKUP(A51,'[2]Product Master Sheet'!$B$2:$F$506,5,0) -> 296 | C51: 0
A52: OBERON (T) SC240 40X200ML BOT IN | B52: =VLOOKUP(A52,'[2]Product Master Sheet'!$B$2:$F$506,5,0) -> 299 | C52: 0
A53: PLANOFIX SL4 5 50X100ML BOT IN | B53: =VLOOKUP(A53,'[2]Product Master Sheet'!$B$2:$F$506,5,0) -> 307 | C53: 22
A54: REGENT (T) SC50 20X250ML BOT IN | B54: =VLOOKUP(A54,'[2]Product Master Sheet'!$B$2:$F$506,5,0) -> 325 | C54: 21
A55: REGENT (T) SC50 20X500ML BOT IN | B55: =VLOOKUP(A55,'[2]Product Master Sheet'!$B$2:$F$506,5,0) -> 326 | C55: 0
A56: REGENT GOLD SC200 20X500ML BOT IN | B56: =VLOOKUP(A56,'[2]Product Master Sheet'!$B$2:$F$506,5,0) -> 330 | C56: 0
A57: REGENT GOLD SC200 40X250ML BOT IN | B57: =VLOOKUP(A57,'[2]Product Master Sheet'!$B$2:$F$506,5,0) -> 331 | C57: 20
A58: REGENT GOLD SC200 50X100ML BOT IN | B58: =VLOOKUP(A58,'[2]Product Master Sheet'!$B$2:$F$506,5,0) -> 332 | C58: 17
A59: REGENT ULTRA GR0 6 5X4KG BAG IN | B59: =VLOOKUP(A59,'[2]Product Master Sheet'!$B$2:$F$506,5,0) -> 339 | C59: 0
A60: REGENT ULTRA GR0.6 2X10KG BAG IN | B60: =VLOOKUP(A60,'[2]Product Master Sheet'!$B$2:$F$506,5,0) -> 340 | C60: 0
A61: SECTIN WG60 10X1KG BAG IN | B61: =VLOOKUP(A61,'[2]Product Master Sheet'!$B$2:$F$506,5,0) -> 344 | C61: 0
A62: SECTIN WG60 50X100GR BAG IN | B62: =VLOOKUP(A62,'[2]Product Master Sheet'!$B$2:$F$506,5,0) -> 346 | C62: 0
A63: SIMBOLA (T) SG20 50X100G BOT IN | B63: =VLOOKUP(A63,'[2]Product Master Sheet'!$B$2:$F$506,5,0) -> 357 | C63: 7
A64: SIVANTO PRIME SL200 10X1L BOT IN | B64: =VLOOKUP(A64,'[2]Product Master Sheet'!$B$2:$F$506,5,0) -> 359 | C64: 7
A65: SIVANTO PRIME SL200 20X500ML BOT IN | B65: =VLOOKUP(A65,'[2]Product Master Sheet'!$B$2:$F$506,5,0) -> 360 | C65: 15
A66: SIVANTO PRIME SL200 40X250ML BOT IN | B66: =VLOOKUP(A66,'[2]Product Master Sheet'!$B$2:$F$506,5,0) -> 361 | C66: 30
A67: SOLOMON OD300 10X1L BOT IN | B67: =VLOOKUP(A67,'[2]Product Master Sheet'!$B$2:$F$506,5,0) -> 365 | C67: 0
A68: SOLOMON OD300 20X500ML BOT IN | B68: =VLOOKUP(A68,'[2]Product Master Sheet'!$B$2:$F$506,5,0) -> 366 | C68: 0
A69: SOLOMON OD300 40X250ML BOT IN | B69: =VLOOKUP(A69,'[2]Product Master Sheet'!$B$2:$F$506,5,0) -> 368 | C69: 41
A70: SUNRICE WG15 100X50GR BOT IN | B70: =VLOOKUP(A70,'[2]Product Master Sheet'!$B$2:$F$506,5,0) -> 374 | C70: 50
A71: DECIS EC 28 50X100ML BOT IN | B71: =VLOOKUP(A71,'[2]Product Master Sheet'!$B$2:$F$506,5,0) -> 928 | C71: 97
A72: SECTIN WG60 20X600GR BAG IN | B72: =VLOOKUP(A72,'[2]Product Master Sheet'!$B$2:$F$506,5,0) -> 345 | C72: 32
A73: REGENT (T) SC50 10X1L BOT IN | B73: =VLOOKUP(A73,'[2]Product Master Sheet'!$B$2:$F$506,5,0) -> 324 | C73: 4
A74: AGENDA EC25 50X100ML BOT IN | B74: =VLOOKUP(A74,'[2]Product Master Sheet'!$B$2:$F$506,5,0) -> 410 | C74: 0
A75: SPINTOR SC495 20X75ML BOT IN | B75: =VLOOKUP(A75,'[2]Product Master Sheet'!$B$2:$F$506,5,0) -> 373 | C75: 21

Sheet Reco
B1: Zylem Report -01-Apr-2020 TO 31-Mar-2021 | K1: Dealer Report -01-Apr-2020 TO 31-Mar-2021 | T1: Difference (+/-)
A3: DEALER CODE | B3: Opening Qty | C3: Purchase Qty | D3: Purchase Return Qty | E3: Sales Qty | F3: Sales Return Qty | G3: Transfer Qty | H3: Consignment Qty | I3: Adjustment Qty | J3: CLSG | K3: Opening Qty | L3: Purchase Qty | M3: Purchase Return Qty | N3: Sales Qty | O3: Sales Return Qty | P3: Transfer Qty | Q3: Consignment Qty | R3: Adjustment Qty | S3: CLSG | T3: Opening Stock Qty | U3: Purchase Qty | V3: Purchase Return Qty | W3: Sales Qty | X3: Sales Return Qty | Y3: Transfer Qty | Z3: Consignment Qty | AA3: Adjustments Qty | AB3: CLSG | AC3: Remark
A4: ADMIRE (T) WG70 30X150GR BOT IN | B4: 17 | C4: 120 | D4: 0 | E4: 131 | F4: 0 | G4: 0 | H4: 0 | I4: 0 | J4: 6 | K4: 17 | L4: 120 | M4: 0 | N4: 131 | O4: 0 | P4: 0 | Q4: 0 | R4: 0 | S4: 6 | T4: 0 | U4: =C4-L4 -> 0 | V4: 0 | W4: 0 | X4: 0 | Y4: 0 | Z4: 0 | AA4: 0 | AB4: =S4-J4 -> 0 | AC4: Ok
A5: ADMIRE (T) WG70 60X75GR BOT IN | B5: 41 | C5: 120 | D5: 0 | E5: 144 | F5: 0 | G5: 0 | H5: 0 | I5: 0 | J5: 17 | K5: 41 | L5: 120 | M5: 0 | N5: 144 | O5: 0 | P5: 0 | Q5: 0 | R5: 0 | S5: 17 | T5: 0 | U5: =C5-L5 -> 0 | V5: 0 | W5: 0 | X5: 0 | Y5: 0 | Z5: 0 | AA5: 0 | AB5: =S5-J5 -> 0 | AC5: Ok
A6: ADMIRE WG70 125X(8X2GR) BAG IN | B6: 0 | C6: 32 | D6: 0 | E6: 20 | F6: 0 | G6: 0 | H6: 0 | I6: 0 | J6: 12 | K6: 0 | L6: 32 | M6: 0 | N6: 20 | O6: 0 | P6: 0 | Q6: 0 | R6: 0 | S6: 12 | T6: 0 | U6: 0 | V6: 0 | W6: 0 | X6: 0 | Y6: 0 | Z6: 0 | AA6: 0 | AB6: 0 | AC6: Ok
A7: ADUE WG70 6X100G BOT IN | B7: 0 | C7: 0 | D7: 0 | E7: 0 | F7: 0 | G7: 0 | H7: 0 | I7: 0 | J7: 0 | K7: 0 | L7: 0 | M7: 0 | N7: 0 | O7: 0 | P7: 0 | Q7: 0 | R7: 0 | S7: 0 | T7: 0 | U7: 0 | V7: 0 | W7: 0 | X7: 0 | Y7: 0 | Z7: 0 | AA7: 0 | AB7: 0 | AC7: Ok
A8: ALANTO (T) SC240 40X250ML BOT IN | B8: 17 | C8: 65 | D8: 20 | E8: 57 | F8: 0 | G8: 0 | H8: 0 | I8: 0 | J8: 5 | K8: 17 | L8: 45 | M8: 0 | N8: 57 | O8: 0 | P8: 0 | Q8: 0 | R8: 0 | S8: 5 | T8: 0 | U8: 20 | V8: 20 | W8: 0 | X8: 0 | Y8: 0 | Z8: 0 | AA8: 0 | AB8: 0 | AC8: Ok
A9: ALIETTE WP80 20X250GR BAG IN | B9: 0 | C9: 0 | D9: 0 | E9: 0 | F9: 0 | G9: 0 | H9: 0 | I9: 0 | J9: 0 | K9: 0 | L9: 0 | M9: 0 | N9: 0 | O9: 0 | P9: 0 | Q9: 0 | R9: 0 | S9: 0 | T9: 0 | U9: 0 | V9: 0 | W9: 0 | X9: 0 | Y9: 0 | Z9: 0 | AA9: 0 | AB9: 0 | AC9: Ok
A10: ALIETTE WP80 20X500GR BAG IN | B10: 0 | C10: 10 | D10: 0 | E10: 10 | F10: 0 | G10: 0 | H10: 0 | I10: 0 | J10: 0 | K10: 0 | L10: 10 | M10: 0 | N10: 10 | O10: 0 | P10: 0 | Q10: 0 | R10: 0 | S10: 0 | T10: 0 | U10: 0 | V10: 0 | W10: 0 | X10: 0 | Y10: 0 | Z10: 0 | AA10: 0 | AB10: 0 | AC10: Ok
A11: ANTRACOL (T) WP70 10X1KG BAG IN | B11: 0 | C11: 470 | D11: 0 | E11: 466 | F11: 8 | G11: 0 | H11: 0 | I11: 0 | J11: 12 | K11: 0 | L11: 470 | M11: 0 | N11: 458 | O11: 0 | P11: 0 | Q11: 0 | R11: 0 | S11: 12 | T11: 0 | U11: 0 | V11: 0 | W11: 8 | X11: 8 | Y11: 0 | Z11: 0 | AA11: 0 | AB11: 0 | AC11: Ok
A12: ANTRACOL (T) WP70 20X500GR BAG IN | B12: 10 | C12: 460 | D12: 0 | E12: 460 | F12: 0 | G12: 0 | H12: 0 | I12: 0 | J12: 10 | K12: 10 | L12: 460 | M12: 0 | N12: 460 | O12: 0 | P12: 0 | Q12: 0 | R12: 0 | S12: 10 | T12: 0 | U12: 0 | V12: 0 | W12: 0 | X12: 0 | Y12: 0 | Z12: 0 | AA12: 0 | AB12: 0 | AC12: Ok
A13: ANTRACOL (T) WP70 40X250GR BAG IN | B13: 0 | C13: 120 | D13: 0 | E13: 116 | F13: 0 | G13: 0 | H13: 0 | I13: 0 | J13: 4 | K13: 0 | L13: 120 | M13: 0 | N13: 116 | O13: 0 | P13: 0 | Q13: 0 | R13: 0 | S13: 4 | T13: 0 | U13: 0 | V13: 0 | W13: 0 | X13: 0 | Y13: 0 | Z13: 0 | AA13: 0 | AB13: 0 | AC13: Ok
A14: CONFIDOR (T) SL200 100X50ML BOT IN | B14: 0 | C14: 40 | D14: 0 | E14: 40 | F14: 0 | G14: 0 | H14: 0 | I14: 0 | J14: 0 | K14: 0 | L14: 40 | M14: 0 | N14: 40 | O14: 0 | P14: 0 | Q14: 0 | R14: 0 | S14: 0 | T14: 0 | U14: 0 | V14: 0 | W14: 0 | X14: 0 | Y14: 0 | Z14: 0 | AA14: 0 | AB14: 0 | AC14: Ok
A15: CONFIDOR (T) SL200 10X1L BOT IN | B15: 0 | C15: 150 | D15: 0 | E15: 150 | F15: 0 | G15: 0 | H15: 0 | I15: 0 | J15: 0 | K15: 0 | L15: 150 | M15: 0 | N15: 150 | O15: 0 | P15: 0 | Q15: 0 | R15: 0 | S15: 0 | T15: 0 | U15: 0 | V15: 0 | W15: 0 | X15: 0 | Y15: 0 | Z15: 0 | AA15: 0 | AB15: 0 | AC15: Ok
A16: CONFIDOR (T) SL200 20X250ML BOT IN | B16: 0 | C16: 3735 | D16: 260 | E16: 3486 | F16: 6 | G16: 0 | H16: 0 | I16: 0 | J16: -5 | K16: 0 | L16: 3475 | M16: 0 | N16: 3480 | O16: 0 | P16: 0 | Q16: 0 | R16: 0 | S16: -5 | T16: 0 | U16: 260 | V16: 260 | W16: 6 | X16: 6 | Y16: 0 | Z16: 0 | AA16: 0 | AB16: 0 | AC16: Ok
A17: CONFIDOR (T) SL200 20X500ML BOT IN | B17: 6 | C17: 1383 | D17: 0 | E17: 1385 | F17: 0 | G17: 0 | H17: 0 | I17: 0 | J17: 4 | K17: 6 | L17: 1383 | M17: 0 | N17: 1385 | O17: 0 | P17: 0 | Q17: 0 | R17: 0 | S17: 4 | T17: 0 | U17: 0 | V17: 0 | W17: 0 | X17: 0 | Y17: 0 | Z17: 0 | AA17: 0 | AB17: 0 | AC17: Ok
A18: CONFIDOR (T) SL200 50X100ML BOT IN | B18: 10 | C18: 4049 | D18: 350 | E18: 3790 | F18: 55 | G18: 0 | H18: 0 | I18: 0 | J18: -26 | K18: 10 | L18: 3699 | M18: 0 | N18: 3735 | O18: 0 | P18: 0 | Q18: 0 | R18: 0 | S18: -26 | T18: 0 | U18: 350 | V18: 350 | W18: 55 | X18: 55 | Y18: 0 | Z18: 0 | AA18: 0 | AB18: 0 | AC18: Ok
A19: CONFIDOR SUPER (T) SC350 20X250ML BOT IN | B19: 14 | C19: =L19 -> 1207 | D19: 0 | E19: 1210 | F19: 5 | G19: 0 | H19: 0 | I19: 0 | J19: =S19 -> 16 | K19: 14 | L19: 1207 | M19: 0 | N19: 1205 | O19: 0 | P19: 0 | Q19: 0 | R19: 0 | S19: 16 | T19: 0 | U19: 0 | V19: 0 | W19: 5 | X19: 5 | Y19: 0 | Z19: 0 | AA19: 0 | AB19: 0 | AC19: Ok
A20: CONFIDOR SUPER (T) SC350 20X500ML BOT IN | B20: 24 | C20: 443 | D20: 80 | E20: 373 | F20: 0 | G20: 0 | H20: 0 | I20: 0 | J20: 14 | K20: 24 | L20: 363 | M20: 0 | N20: 373 | O20: 0 | P20: 0 | Q20: 0 | R20: 0 | S20: 14 | T20: 0 | U20: 80 | V20: 80 | W20: 0 | X20: 0 | Y20: 0 | Z20: 0 | AA20: 0 | AB20: 0 | AC20: Ok
A21: CONFIDOR SUPER (T) SC350 50X100ML BOT IN | B21: 0 | C21: 1850 | D21: 650 | E21: 1206 | F21: 8 | G21: 0 | H21: 0 | I21: 0 | J21: 2 | K21: 0 | L21: 1200 | M21: 0 | N21: 1198 | O21: 0 | P21: 0 | Q21: 0 | R21: 0 | S21: 2 | T21: 0 | U21: 650 | V21: 650 | W21: 8 | X21: 8 | Y21: 0 | Z21: 0 | AA21: 0 | AB21: 0 | AC21: Ok
A22: CONFIDOR SUPER (T) SC350 50X50ML BOT IN | B22: 0 | C22: 445 | D22: 200 | E22: 241 | F22: 0 | G22: 0 | H22: 0 | I22: 0 | J22: 4 | K22: 0 | L22: 245 | M22: 0 | N22: 241 | O22: 0 | P22: 0 | Q22: 0 | R22: 0 | S22: 4 | T22: 0 | U22: 200 | V22: 200 | W22: 0 | X22: 0 | Y22: 0 | Z22: 0 | AA22: 0 | AB22: 0 | AC22: Ok
A23: COUNCIL ACTIV WG30 12X(5X90GR) BOX IN | B23: 0 | C23: 5 | D23: 0 | E23: 5 | F23: 0 | G23: 0 | H23: 0 | I23: 0 | J23: 0 | K23: 0 | L23: 5 | M23: 0 | N23: 5 | O23: 0 | P23: 0 | Q23: 0 | R23: 0 | S23: 0 | T23: 0 | U23: 0 | V23: 0 | W23: 0 | X23: 0 | Y23: 0 | Z23: 0 | AA23: 0 | AB23: 0 | AC23: Ok
A24: DECIS EC 28 40X250ML BOT IN | B24: 0 | C24: 396 | D24: 0 | E24: 36 | F24: 0 | G24: 0 | H24: 0 | I24: 0 | J24: 360 | K24: 0 | L24: 396 | M24: 0 | N24: 36 | O24: 0 | P24: 0 | Q24: 0 | R24: 0 | S24: 360 | T24: 0 | U24: 0 | V24: 0 | W24: 0 | X24: 0 | Y24: 0 | Z24: 0 | AA24: 0 | AB24: 0 | AC24: Ok
A25: EVERGOL XTEND FS308 100X40ML BOT IN | B25: 0 | C25: 500 | D25: 0 | E25: 375 | F25: 0 | G25: 0 | H25: 0 | I25: 0 | J25: 125 | K25: 0 | L25: 500 | M25: 0 | N25: 375 | O25: 0 | P25: 0 | Q25: 0 | R25: 0 | S25: 125 | T25: 0 | U25: 0 | V25: 0 | W25: 0 | X25: 0 | Y25: 0 | Z25: 0 | AA25: 0 | AB25: 0 | AC25: Ok
A26: EVERGOL XTEND FS308 50X100ML BOT IN | B26: 0 | C26: 157 | D26: 0 | E26: 157 | F26: 0 | G26: 0 | H26: 0 | I26: 0 | J26: 0 | K26: 0 | L26: 157 | M26: 0 | N26: 157 | O26: 0 | P26: 0 | Q26: 0 | R26: 0 | S26: 0 | T26: 0 | U26: 0 | V26: 0 | W26: 0 | X26: 0 | Y26: 0 | Z26: 0 | AA26: 0 | AB26: 0 | AC26: Ok
A27: FAME (T) SC480 10X(20X10ML) BOT IN | B27: 8 | C27: 1000 | D27: 0 | E27: 1007 | F27: 0 | G27: 0 | H27: 0 | I27: 0 | J27: 1 | K27: 8 | L27: 1000 | M27: 0 | N27: 1007 | O27: 0 | P27: 0 | Q27: 0 | R27: 0 | S27: 1 | T27: 0 | U27: 0 | V27: 0 | W27: 0 | X27: 0 | Y27: 0 | Z27: 0 | AA27: 0 | AB27: 0 | AC27: Ok
A28: FAME (T) SC480 20X100ML BOT IN | B28: 9 | C28: 3960 | D28: 0 | E28: 3485 | F28: 0 | G28: 0 | H28: 0 | I28: 0 | J28: 484 | K28: 9 | L28: 3960 | M28: 0 | N28: 3485 | O28: 0 | P28: 0 | Q28: 0 | R28: 0 | S28: 484 | T28: 0 | U28: 0 | V28: 0 | W28: 0 | X28: 0 | Y28: 0 | Z28: 0 | AA28: 0 | AB28: 0 | AC28: Ok
A29: FAME (T) SC480 40X50ML BOT IN | B29: 0 | C29: 7257 | D29: 80 | E29: 6364 | F29: 0 | G29: 0 | H29: 0 | I29: 0 | J29: 813 | K29: 0 | L29: 7177 | M29: 0 | N29: 6364 | O29: 0 | P29: 0 | Q29: 0 | R29: 0 | S29: 813 | T29: 0 | U29: 80 | V29: 80 | W29: 0 | X29: 0 | Y29: 0 | Z29: 0 | AA29: 0 | AB29: 0 | AC29: Ok
A30: FAME (T) SC480 8X250ML BOT IN | B30: 0 | C30: 16 | D30: 0 | E30: 12 | F30: 0 | G30: 0 | H30: 0 | I30: 0 | J30: 4 | K30: 0 | L30: 16 | M30: 0 | N30: 12 | O30: 0 | P30: 0 | Q30: 0 | R30: 0 | S30: 4 | T30: 0 | U30: 0 | V30: 0 | W30: 0 | X30: 0 | Y30: 0 | Z30: 0 | AA30: 0 | AB30: 0 | AC30: Ok
A31: FOLICUR (T) EC250 40X250ML BOT IN | B31: 0 | C31: 82 | D31: 0 | E31: 82 | F31: 0 | G31: 0 | H31: 0 | I31: 0 | J31: 0 | K31: 0 | L31: 82 | M31: 0 | N31: 82 | O31: 0 | P31: 0 | Q31: 0 | R31: 0 | S31: 0 | T31: 0 | U31: 0 | V31: 0 | W31: 0 | X31: 0 | Y31: 0 | Z31: 0 | AA31: 0 | AB31: 0 | AC31: Ok
A32: FOOST WP50 20X250G BAG IN | B32: 0 | C32: 896 | D32: 0 | E32: 990 | F32: 0 | G32: 0 | H32: 0 | I32: 0 | J32: -94 | K32: 0 | L32: 896 | M32: 0 | N32: 990 | O32: 0 | P32: 0 | Q32: 0 | R32: 0 | S32: -94 | T32: 0 | U32: 0 | V32: 0 | W32: 0 | X32: 0 | Y32: 0 | Z32: 0 | AA32: 0 | AB32: 0 | AC32: Ok
A33: FOOST WP50 24X500G BAG IN | B33: 212 | C33: =L33 -> 4812 | D33: 0 | E33: 4464 | F33: 6 | G33: 0 | H33: 0 | I33: 0 | J33: =S33 -> 566 | K33: 212 | L33: 4812 | M33: 0 | N33: 4458 | O33: 0 | P33: 0 | Q33: 0 | R33: 0 | S33: 566 | T33: 0 | U33: 0 | V33: 0 | W33: 6 | X33: 6 | Y33: 0 | Z33: 0 | AA33: 0 | AB33: 0 | AC33: Ok
A34: GAUCHO FS600 100X50ML BOT IN | B34: 0 | C34: 120 | D34: 0 | E34: 108 | F34: 0 | G34: 0 | H34: 0 | I34: 0 | J34: 12 | K34: 0 | L34: 120 | M34: 0 | N34: 108 | O34: 0 | P34: 0 | Q34: 0 | R34: 0 | S34: 12 | T34: 0 | U34: 0 | V34: 0 | W34: 0 | X34: 0 | Y34: 0 | Z34: 0 | AA34: 0 | AB34: 0 | AC34: Ok
A35: GAUCHO FS600 50X100ML BOT IN | B35: 66 | C35: 370 | D35: 0 | E35: 381 | F35: 0 | G35: 0 | H35: 0 | I35: 0 | J35: 55 | K35: 66 | L35: 370 | M35: 0 | N35: 381 | O35: 0 | P35: 0 | Q35: 0 | R35: 0 | S35: 55 | T35: 0 | U35: 0 | V35: 0 | W35: 0 | X35: 0 | Y35: 0 | Z35: 0 | AA35: 0 | AB35: 0 | AC35: Ok
A36: JUMP WG80 160X(10X2GR) BAG IN | B36: 0 | C36: 1630 | D36: 0 | E36: 1613 | F36: 0 | G36: 0 | H36: 0 | I36: 0 | J36: 17 | K36: 0 | L36: 1630 | M36: 0 | N36: 1613 | O36: 0 | P36: 0 | Q36: 0 | R36: 0 | S36: 17 | T36: 0 | U36: 0 | V36: 0 | W36: 0 | X36: 0 | Y36: 0 | Z36: 0 | AA36: 0 | AB36: 0 | AC36: Ok
A37: JUMP WG80 80X40GR BAG IN | B37: 0 | C37: 240 | D37: 0 | E37: 240 | F37: 0 | G37: 0 | H37: 0 | I37: 0 | J37: 0 | K37: 0 | L37: 240 | M37: 0 | N37: 240 | O37: 0 | P37: 0 | Q37: 0 | R37: 0 | S37: 0 | T37: 0 | U37: 0 | V37: 0 | W37: 0 | X37: 0 | Y37: 0 | Z37: 0 | AA37: 0 | AB37: 0 | AC37: Ok
A38: LARVIN (T) WP75 10X1KG BAG IN | B38: 6 | C38: =L38 -> 21 | D38: 0 | E38: 16 | F38: 0 | G38: 0 | H38: 0 | I38: 0 | J38: =S38 -> 11 | K38: 6 | L38: 21 | M38: 0 | N38: 16 | O38: 0 | P38: 0 | Q38: 0 | R38: 0 | S38: 11 | T38: 0 | U38: 0 | V38: 0 | W38: 0 | X38: 0 | Y38: 0 | Z38: 0 | AA38: 0 | AB38: 0 | AC38: Ok
A39: LARVIN (T) WP75 20X250GR BAG IN | B39: 0 | C39: 40 | D39: 0 | E39: 39 | F39: 0 | G39: 0 | H39: 0 | I39: 0 | J39: 1 | K39: 0 | L39: 40 | M39: 0 | N39: 39 | O39: 0 | P39: 0 | Q39: 0 | R39: 0 | S39: 1 | T39: 0 | U39: 0 | V39: 0 | W39: 0 | X39: 0 | Y39: 0 | Z39: 0 | AA39: 0 | AB39: 0 | AC39: Ok
A40: LARVIN (T) WP75 20X500GR BAG IN | B40: 3 | C40: 42 | D40: 0 | E40: 50 | F40: 0 | G40: 0 | H40: 0 | I40: 0 | J40: -5 | K40: 3 | L40: 42 | M40: 0 | N40: 50 | O40: 0 | P40: 0 | Q40: 0 | R40: 0 | S40: -5 | T40: 0 | U40: 0 | V40: 0 | W40: 0 | X40: 0 | Y40: 0 | Z40: 0 | AA40: 0 | AB40: 0 | AC40: Ok
A41: LAUDIS SC630 10X57.5ML BOT IN | B41: 5 | C41: 1040 | D41: 0 | E41: 1027 | F41: 0 | G41: 0 | H41: 0 | I41: 0 | J41: 18 | K41: 5 | L41: 1040 | M41: 0 | N41: 1027 | O41: 0 | P41: 0 | Q41: 0 | R41: 0 | S41: 18 | T41: 0 | U41: 0 | V41: 0 | W41: 0 | X41: 0 | Y41: 0 | Z41: 0 | AA41: 0 | AB41: 0 | AC41: Ok
A42: LAUDIS SC630 3X230ML BOT IN | B42: 3 | C42: 585 | D42: 0 | E42: 544 | F42: 1 | G42: 0 | H42: 0 | I42: 0 | J42: 45 | K42: 3 | L42: 585 | M42: 0 | N42: 543 | O42: 0 | P42: 0 | Q42: 0 | R42: 0 | S42: 45 | T42: 0 | U42: 0 | V42: 0 | W42: 1 | X42: 1 | Y42: 0 | Z42: 0 | AA42: 0 | AB42: 0 | AC42: Ok
A43: LAUDIS SC630 8X115ML BOT IN | B43: 28 | C43: =L43 -> 3455 | D43: 0 | E43: 3287 | F43: 4 | G43: 0 | H43: 0 | I43: 0 | J43: =S43 -> 200 | K43: 28 | L43: 3455 | M43: 0 | N43: 3283 | O43: 0 | P43: 0 | Q43: 0 | R43: 0 | S43: 200 | T43: 0 | U43: 0 | V43: 0 | W43: 4 | X43: 4 | Y43: 0 | Z43: 0 | AA43: 0 | AB43: 0 | AC43: Ok
A44: LESENTA WG80 100X40GR BAG IN | B44: 7 | C44: 100 | D44: 0 | E44: 32 | F44: 0 | G44: 0 | H44: 0 | I44: 0 | J44: 75 | K44: 7 | L44: 100 | M44: 0 | N44: 32 | O44: 0 | P44: 0 | Q44: 0 | R44: 0 | S44: 75 | T44: 0 | U44: 0 | V44: 0 | W44: 0 | X44: 0 | Y44: 0 | Z44: 0 | AA44: 0 | AB44: 0 | AC44: Ok
A45: LESENTA WG80 20X250GR BAG IN | B45: 10 | C45: 60 | D45: 0 | E45: 53 | F45: 3 | G45: 0 | H45: 0 | I45: 0 | J45: 20 | K45: 10 | L45: 60 | M45: 0 | N45: 50 | O45: 0 | P45: 0 | Q45: 0 | R45: 0 | S45: 20 | T45: 0 | U45: 0 | V45: 0 | W45: 3 | X45: 3 | Y45: 0 | Z45: 0 | AA45: 0 | AB45: 0 | AC45: Ok
A46: LESENTA WG80 50X100GR BAG IN | B46: 0 | C46: 400 | D46: 0 | E46: 379 | F46: 9 | G46: 0 | H46: 0 | I46: 0 | J46: 30 | K46: 0 | L46: 400 | M46: 0 | N46: 370 | O46: 0 | P46: 0 | Q46: 0 | R46: 0 | S46: 30 | T46: 0 | U46: 0 | V46: 0 | W46: 9 | X46: 9 | Y46: 0 | Z46: 0 | AA46: 0 | AB46: 0 | AC46: Ok
A47: MOVENTO OD150 10X1L BOT IN | B47: 12 | C47: 10 | D47: 0 | E47: 18 | F47: 1 | G47: 0 | H47: 0 | I47: 0 | J47: 5 | K47: 12 | L47: 10 | M47: 0 | N47: 17 | O47: 0 | P47: 0 | Q47: 0 | R47: 0 | S47: 5 | T47: 0 | U47: 0 | V47: 0 | W47: 1 | X47: 1 | Y47: 0 | Z47: 0 | AA47: 0 | AB47: 0 | AC47: Ok
A48: MOVENTO OD150 40X250ML BOT IN | B48: 0 | C48: 200 | D48: 0 | E48: 205 | F48: 10 | G48: 0 | H48: 0 | I48: 0 | J48: 5 | K48: 0 | L48: 200 | M48: 0 | N48: 195 | O48: 0 | P48: 0 | Q48: 0 | R48: 0 | S48: 5 | T48: 0 | U48: 0 | V48: 0 | W48: 10 | X48: 10 | Y48: 0 | Z48: 0 | AA48: 0 | AB48: 0 | AC48: Ok
A49: NATIVO WG75 100X50GR BAG IN | B49: 26 | C49: 100 | D49: 0 | E49: 66 | F49: 0 | G49: 0 | H49: 0 | I49: 0 | J49: 60 | K49: 26 | L49: 100 | M49: 0 | N49: 66 | O49: 0 | P49: 0 | Q49: 0 | R49: 0 | S49: 60 | T49: 0 | U49: 0 | V49: 0 | W49: 0 | X49: 0 | Y49: 0 | Z49: 0 | AA49: 0 | AB49: 0 | AC49: Ok
A50: NATIVO WG75 20X(10X10GR) BAG IN | B50: 0 | C50: 30 | D50: 0 | E50: 2 | F50: 0 | G50: 0 | H50: 0 | I50: 0 | J50: 28 | K50: 0 | L50: 30 | M50: 0 | N50: 2 | O50: 0 | P50: 0 | Q50: 0 | R50: 0 | S50: 28 | T50: 0 | U50: 0 | V50: 0 | W50: 0 | X50: 0 | Y50: 0 | Z50: 0 | AA50: 0 | AB50: 0 | AC50: Ok
A51: NATIVO WG75 20X500GR BAG IN | B51: 7 | C51: 40 | D51: 0 | E51: 40 | F51: 0 | G51: 0 | H51: 0 | I51: 0 | J51: 7 | K51: 7 | L51: 40 | M51: 0 | N51: 40 | O51: 0 | P51: 0 | Q51: 0 | R51: 0 | S51: 7 | T51: 0 | U51: 0 | V51: 0 | W51: 0 | X51: 0 | Y51: 0 | Z51: 0 | AA51: 0 | AB51: 0 | AC51: Ok
A52: NATIVO WG75 40X250GR BAG IN | B52: 0 | C52: 648 | D52: 0 | E52: 622 | F52: 1 | G52: 0 | H52: 0 | I52: 0 | J52: 27 | K52: 0 | L52: 648 | M52: 0 | N52: 621 | O52: 0 | P52: 0 | Q52: 0 | R52: 0 | S52: 27 | T52: 0 | U52: 0 | V52: 0 | W52: 1 | X52: 1 | Y52: 0 | Z52: 0 | AA52: 0 | AB52: 0 | AC52: Ok
A53: NATIVO WG75 50X100GR BAG IN | B53: 8 | C53: 4007 | D53: 0 | E53: 3878 | F53: 0 | G53: 0 | H53: 0 | I53: 0 | J53: 137 | K53: 8 | L53: 4007 | M53: 0 | N53: 3878 | O53: 0 | P53: 0 | Q53: 0 | R53: 0 | S53: 137 | T53: 0 | U53: 0 | V53: 0 | W53: 0 | X53: 0 | Y53: 0 | Z53: 0 | AA53: 0 | AB53: 0 | AC53: Ok
A54: OBERON (T) SC240 10X1L BOT IN | B54: 0 | C54: 90 | D54: 0 | E54: 90 | F54: 0 | G54: 0 | H54: 0 | I54: 0 | J54: 0 | K54: 0 | L54: 90 | M54: 0 | N54: 90 | O54: 0 | P54: 0 | Q54: 0 | R54: 0 | S54: 0 | T54: 0 | U54: 0 | V54: 0 | W54: 0 | X54: 0 | Y54: 0 | Z54: 0 | AA54: 0 | AB54: 0 | AC54: Ok
A55: OBERON (T) SC240 40X200ML BOT IN | B55: 0 | C55: 90 | D55: 0 | E55: 90 | F55: 0 | G55: 0 | H55: 0 | I55: 0 | J55: 0 | K55: 0 | L55: 90 | M55: 0 | N55: 90 | O55: 0 | P55: 0 | Q55: 0 | R55: 0 | S55: 0 | T55: 0 | U55: 0 | V55: 0 | W55: 0 | X55: 0 | Y55: 0 | Z55: 0 | AA55: 0 | AB55: 0 | AC55: Ok
A56: PLANOFIX SL4 5 50X100ML BOT IN | B56: 22 | C56: 750 | D56: 0 | E56: 730 | F56: 0 | G56: 0 | H56: 0 | I56: 0 | J56: 42 | K56: 22 | L56: 750 | M56: 0 | N56: 730 | O56: 0 | P56: 0 | Q56: 0 | R56: 0 | S56: 42 | T56: 0 | U56: 0 | V56: 0 | W56: 0 | X56: 0 | Y56: 0 | Z56: 0 | AA56: 0 | AB56: 0 | AC56: Ok
A57: REGENT (T) SC50 20X250ML BOT IN | B57: 21 | C57: 1940 | D57: 0 | E57: 1968 | F57: 8 | G57: 0 | H57: 0 | I57: 0 | J57: 1 | K57: 21 | L57: 1940 | M57: 0 | N57: 1960 | O57: 0 | P57: 0 | Q57: 0 | R57: 0 | S57: 1 | T57: 0 | U57: 0 | V57: 0 | W57: 8 | X57: 8 | Y57: 0 | Z57: 0 | AA57: 0 | AB57: 0 | AC57: Ok
A58: REGENT (T) SC50 20X500ML BOT IN | B58: 0 | C58: 4841 | D58: 0 | E58: 4871 | F58: 26 | G58: 0 | H58: 0 | I58: 0 | J58: -4 | K58: 0 | L58: 4841 | M58: 0 | N58: 4845 | O58: 0 | P58: 0 | Q58: 0 | R58: 0 | S58: -4 | T58: 0 | U58: 0 | V58: 0 | W58: 26 | X58: 26 | Y58: 0 | Z58: 0 | AA58: 0 | AB58: 0 | AC58: Ok
A59: REGENT GOLD SC200 20X500ML BOT IN | B59: 0 | C59: 0 | D59: 0 | E59: 0 | F59: 0 | G59: 0 | H59: 0 | I59: 0 | J59: 0 | K59: 0 | L59: 0 | M59: 0 | N59: 0 | O59: 0 | P59: 0 | Q59: 0 | R59: 0 | S59: 0 | T59: 0 | U59: 0 | V59: 0 | W59: 0 | X59: 0 | Y59: 0 | Z59: 0 | AA59: 0 | AB59: 0 | AC59: Ok
A60: REGENT GOLD SC200 40X250ML BOT IN | B60: 20 | C60: =L60 -> 81 | D60: 0 | E60: 93 | F60: 0 | G60: 0 | H60: 0 | I60: 0 | J60: =S60 -> 8 | K60: 20 | L60: 81 | M60: 0 | N60: 93 | O60: 0 | P60: 0 | Q60: 0 | R60: 0 | S60: 8 | T60: 0 | U60: 0 | V60: 0 | W60: 0 | X60: 0 | Y60: 0 | Z60: 0 | AA60: 0 | AB60: 0 | AC60: Ok
A61: REGENT GOLD SC200 50X100ML BOT IN | B61: 17 | C61: =L61 -> 51 | D61: 0 | E61: 67 | F61: 0 | G61: 0 | H61: 0 | I61: 0 | J61: =S61 -> 1 | K61: 17 | L61: 51 | M61: 0 | N61: 67 | O61: 0 | P61: 0 | Q61: 0 | R61: 0 | S61: 1 | T61: 0 | U61: 0 | V61: 0 | W61: 0 | X61: 0 | Y61: 0 | Z61: 0 | AA61: 0 | AB61: 0 | AC61: Ok
A62: REGENT ULTRA GR0 6 5X4KG BAG IN | B62: 0 | C62: 203 | D62: 0 | E62: 163 | F62: 0 | G62: 0 | H62: 0 | I62: 0 | J62: 40 | K62: 0 | L62: 203 | M62: 0 | N62: 163 | O62: 0 | P62: 0 | Q62: 0 | R62: 0 | S62: 40 | T62: 0 | U62: 0 | V62: 0 | W62: 0 | X62: 0 | Y62: 0 | Z62: 0 | AA62: 0 | AB62: 0 | AC62: Ok
A63: REGENT ULTRA GR0.6 2X10KG BAG IN | B63: 0 | C63: 0 | D63: 0 | E63: 0 | F63: 0 | G63: 0 | H63: 0 | I63: 0 | J63: 0 | K63: 0 | L63: 0 | M63: 0 | N63: 0 | O63: 0 | P63: 0 | Q63: 0 | R63: 0 | S63: 0 | T63: 0 | U63: 0 | V63: 0 | W63: 0 | X63: 0 | Y63: 0 | Z63: 0 | AA63: 0 | AB63: 0 | AC63: Ok
A64: SECTIN WG60 10X1KG BAG IN | B64: 0 | C64: 40 | D64: 0 | E64: 40 | F64: 0 | G64: 0 | H64: 0 | I64: 0 | J64: 0 | K64: 0 | L64: 40 | M64: 0 | N64: 40 | O64: 0 | P64: 0 | Q64: 0 | R64: 0 | S64: 0 | T64: 0 | U64: 0 | V64: 0 | W64: 0 | X64: 0 | Y64: 0 | Z64: 0 | AA64: 0 | AB64: 0 | AC64: Ok
A65: SECTIN WG60 50X100GR BAG IN | B65: 0 | C65: 0 | D65: 0 | E65: 0 | F65: 0 | G65: 0 | H65: 0 | I65: 0 | J65: 0 | K65: 0 | L65: 0 | M65: 0 | N65: 0 | O65: 0 | P65: 0 | Q65: 0 | R65: 0 | S65: 0 | T65: 0 | U65: 0 | V65: 0 | W65: 0 | X65: 0 | Y65: 0 | Z65: 0 | AA65: 0 | AB65: 0 | AC65: Ok
A66: SIMBOLA (T) SG20 50X100G BOT IN | B66: 7 | C66: 70 | D66: 0 | E66: 22 | F66: 0 | G66: 0 | H66: 0 | I66: 0 | J66: 55 | K66: 7 | L66: 70 | M66: 0 | N66: 22 | O66: 0 | P66: 0 | Q66: 0 | R66: 0 | S66: 55 | T66: 0 | U66: 0 | V66: 0 | W66: 0 | X66: 0 | Y66: 0 | Z66: 0 | AA66: 0 | AB66: 0 | AC66: Ok
A67: SIVANTO PRIME SL200 10X1L BOT IN | B67: 7 | C67: 0 | D67: 0 | E67: 1 | F67: 0 | G67: 0 | H67: 0 | I67: 0 | J67: 6 | K67: 7 | L67: 0 | M67: 0 | N67: 1 | O67: 0 | P67: 0 | Q67: 0 | R67: 0 | S67: 6 | T67: 0 | U67: 0 | V67: 0 | W67: 0 | X67: 0 | Y67: 0 | Z67: 0 | AA67: 0 | AB67: 0 | AC67: Ok
A68: SIVANTO PRIME SL200 20X500ML BOT IN | B68: 15 | C68: 0 | D68: 0 | E68: 2 | F68: 0 | G68: 0 | H68: 0 | I68: 0 | J68: 13 | K68: 15 | L68: 0 | M68: 0 | N68: 2 | O68: 0 | P68: 0 | Q68: 0 | R68: 0 | S68: 13 | T68: 0 | U68: 0 | V68: 0 | W68: 0 | X68: 0 | Y68: 0 | Z68: 0 | AA68: 0 | AB68: 0 | AC68: Ok
A69: SIVANTO PRIME SL200 40X250ML BOT IN | B69: 30 | C69: 0 | D69: 0 | E69: 30 | F69: 0 | G69: 0 | H69: 0 | I69: 0 | J69: 0 | K69: 30 | L69: 0 | M69: 0 | N69: 30 | O69: 0 | P69: 0 | Q69: 0 | R69: 0 | S69: 0 | T69: 0 | U69: =C69-L69 -> 0 | V69: 0 | W69: 0 | X69: 0 | Y69: 0 | Z69: 0 | AA69: 0 | AB69: =S69-J69 -> 0 | AC69: Ok
A70: SOLOMON OD300 10X1L BOT IN | B70: 0 | C70: 83 | D70: 0 | E70: 84 | F70: 0 | G70: 0 | H70: 0 | I70: 0 | J70: -1 | K70: 0 | L70: 83 | M70: 0 | N70: 84 | O70: 0 | P70: 0 | Q70: 0 | R70: 0 | S70: -1 | T70: 0 | U70: 0 | V70: 0 | W70: 0 | X70: 0 | Y70: 0 | Z70: 0 | AA70: 0 | AB70: 0 | AC70: Ok
A71: SOLOMON OD300 20X500ML BOT IN | B71: 0 | C71: 80 | D71: 0 | E71: 81 | F71: 0 | G71: 0 | H71: 0 | I71: 0 | J71: -1 | K71: 0 | L71: 80 | M71: 0 | N71: 81 | O71: 0 | P71: 0 | Q71: 0 | R71: 0 | S71: -1 | T71: 0 | U71: 0 | V71: 0 | W71: 0 | X71: 0 | Y71: 0 | Z71: 0 | AA71: 0 | AB71: 0 | AC71: Ok
A72: SOLOMON OD300 40X250ML BOT IN | B72: 41 | C72: 160 | D72: 80 | E72: 74 | F72: 0 | G72: 0 | H72: 0 | I72: 0 | J72: 47 | K72: 41 | L72: 80 | M72: 0 | N72: 74 | O72: 0 | P72: 0 | Q72: 0 | R72: 0 | S72: 47 | T72: 0 | U72: 80 | V72: 80 | W72: 0 | X72: 0 | Y72: 0 | Z72: 0 | AA72: 0 | AB72: 0 | AC72: Ok
A73: SPINTOR SC495 20X75ML BOT IN | B73: 21 | C73: 0 | D73: 0 | E73: 0 | F73: 0 | G73: 0 | H73: 0 | I73: 0 | J73: 21 | K73: 21 | L73: 0 | M73: 0 | N73: 0 | O73: 0 | P73: 0 | Q73: 0 | R73: 0 | S73: 21 | T73: 0 | U73: 0 | V73: 0 | W73: 0 | X73: 0 | Y73: 0 | Z73: 0 | AA73: 0 | AB73: 0 | AC73: Ok
A74: SUNRICE WG15 100X50GR BOT IN | B74: 50 | C74: 0 | D74: 0 | E74: 50 | F74: 0 | G74: 0 | H74: 0 | I74: 0 | J74: 0 | K74: 50 | L74: 0 | M74: 0 | N74: 50 | O74: 0 | P74: 0 | Q74: 0 | R74: 0 | S74: 0 | T74: 0 | U74: 0 | V74: 0 | W74: 0 | X74: 0 | Y74: 0 | Z74: 0 | AA74: 0 | AB74: 0 | AC74: Ok
A75: DECIS EC 28 50X100ML BOT IN | B75: 97 | C75: 50 | D75: 0 | E75: 63 | F75: 0 | G75: 0 | H75: 0 | I75: 0 | J75: 84 | K75: 97 | L75: 50 | M75: 0 | N75: 63 | O75: 0 | P75: 0 | Q75: 0 | R75: 0 | S75: 84 | T75: 0 | U75: 0 | V75: 0 | W75: 0 | X75: 0 | Y75: 0 | Z75: 0 | AA75: 0 | AB75: 0 | AC75: Ok
A76: SECTIN WG60 20X600GR BAG IN | B76: 32 | C76: 0 | D76: 0 | E76: 32 | F76: 0 | G76: 0 | H76: 0 | I76: 0 | J76: 0 | K76: 32 | L76: 0 | M76: 0 | N76: 32 | O76: 0 | P76: 0 | Q76: 0 | R76: 0 | S76: 0 | T76: 0 | U76: 0 | V76: 0 | W76: 0 | X76: 0 | Y76: 0 | Z76: 0 | AA76: 0 | AB76: 0 | AC76: Ok
A77: REGENT (T) SC50 10X1L BOT IN | B77: 4 | C77: =L77 -> 4641 | D77: 0 | E77: 4664 | F77: 32 | G77: 0 | H77: 0 | I77: 0 | J77: =S77 -> 13 | K77: 4 | L77: 4641 | M77: 0 | N77: 4632 | O77: 0 | P77: 0 | Q77: 0 | R77: 0 | S77: 13 | T77: 0 | U77: 0 | V77: 0 | W77: 32 | X77: 32 | Y77: 0 | Z77: 0 | AA77: 0 | AB77: 0 | AC77: Ok
A78: AGENDA EC25 50X100ML BOT IN | B78: 0 | C78: 0 | D78: 0 | E78: 0 | F78: 0 | G78: 0 | H78: 0 | I78: 0 | J78: 0 | K78: 0 | L78: 0 | M78: 0 | N78: 0 | O78: 0 | P78: 0 | Q78: 0 | R78: 0 | S78: 0 | T78: 0 | U78: 0 | V78: 0 | W78: 0 | X78: 0 | Y78: 0 | Z78: 0 | AA78: 0 | AB78: 0 | AC78: Ok
A79: Total | B79: 933 | C79: =SUM(C4:C78) -> 60088 | D79: 1720 | E79: 56077 | F79: 183 | G79: 0 | H79: 0 | I79: 0 | J79: =SUM(J4:J78) -> 3407 | K79: 933 | L79: =SUM(L4:L78) -> 58368 | M79: 0 | N79: 55894 | O79: 0 | P79: 0 | Q79: 0 | R79: 0 | S79: 3407 | T79: 0 | U79: =SUM(U4:U78) -> 1720 | V79: =SUM(V4:V78) -> 1720 | W79: 183 | X79: 183 | Y79: 0 | Z79: 0 | AA79: 0 | AB79: 0
